{"text_format":"1","workbook":"xlsx","n_sheets":4,"sheets":["Hoja1","Hoja2","Hoja3","Hoja4"],"not_rendered":{"charts":0,"images":4,"macros":1,"external_links":0,"defined_names":2,"comments":0,"pivot_tables":0},"unopened":[],"bounds":{"document_bytes":16777216,"sheet_cells":100000,"rows_first":2000,"rows_last":500,"rows_between":2000,"halvings":0,"cell_chars":16384,"cell_head_chars":4096},"cells_cut":0,"cells_raw":0,"read":"whole","date_system":"1900"}

{"sheet":"Hoja1","index":0,"n_rows":981,"n_cols":11,"rows_kept":981,"cut":false,"hidden":false,"merged":[]}
[1,"El largo desarrollo del conflicto obligó al bando republicano a reorganizar sus fuerzas militares para hacerlas más efectivas. ","¿ Con qué nombre se conoció a la nueva formación ?","Quinto regimiento","Ejército rojo","Ejército Popular de la República","Milicia cofederal","Ejército Popular de la República",3,"Guerra Civil España"]
[2,"¿ En cuál de estos lugares no consiguieron imponerse los sublevados al comienzo del pronunciamiento militar en julio de 1936 ?",null,"Valencia","Castilla y León","galicia","Andalucia","Valencia",1,"Guerra Civil España"]
[3,"En las primeras semanas de conflicto, el bando republicano consigue bloquear al sublevado en un estratégico lugar, si bien la ayuda militar de Hitler y Mussolini permitió al bando nacional romper el bloqueo. ","¿ De qué lugar se trataba ?","Islas Baleares","Los Pirineos","Estrecho de Gibraltar","Desfiladero de Despeñaperros","Estrecho de Gibraltar",3,"Guerra Civil España"]
[4,"Tras la guerra se produjo un proceso de depuración a los funcionarios públicos. ","¿ Dónde se produjo la mayor purga en contra de los sospechosos de haber apoyado a la República ?","En la educación","En la hacienda","En los ayuntamientos","En la sanidad","En la educación",1,"Guerra Civil España"]
[5,"Tras el inicio de la contienda, el General Sanjurjo iba a ponerse al frente de los sublevados, pero finalmente no fue así. ","¿ Por qué ?","Fue rechazado por su profundo anticlericalismo","Se paso al bando republicano","Fue hecho prisionero y ejecutado","Falleció en un accidente de avión","Falleció en un accidente de avión",4,"Guerra Civil España"]
[6,"Durante el desarrollo de la Guerra tomó auge la figura de los alféreces provisionales. ","¿ Quiénes eran ?","Heridos de guerra que tras el campo de batalla hicieron labores administrativas","Ciudadanos civiles en la reserva","Milicianos republicanos que eran canjeados por prisioneros de guerra","Mandos intemedios de rápida preparación en el bando nacional","Mandos intemedios de rápida preparación en el bando nacional",4,"Guerra Civil España"]
[7,"Aproximadamente, ","¿ cuántas personas entre civiles y militares fallecieron durante la Guerra Civil en España ?",2000000,150000,1000000,500000,500000,4,"Guerra Civil España"]
[8,"A partir de 1952, el régimen pone en prácticas varios planes de desarrollo integral destinados a provincias atrasadas. ","¿ Cuál fue la primera provincia española en recibir esta ayuda ?","Jaén","Almería","Soria","Badajoz","Badajoz",4,"Guerra Civil España"]
[9,"En 1956, España abandona el Protectorado de Marruecos. Sin embargo, en 1958 se produce un enfrentamiento bélico ambos por un enclave español en territorio marroquí"," ¿ Cuál ?","Melilla","Ifni","Ceuta","Tarfaya","Ifni",2,"Guerra Civil España"]
[10,"¿ Cuál fue la postura prácticamente unánime de la Iglesia Católica durante el conflicto ?",null,"Apoyó a los sublevados de Francisco Franco","Defendió la legitimidad del gobierno de la Republica","Trato de impedir a toda costa el conflicto y la lucha armada","Se mantuvo neutral","Apoyó a los sublevados de Francisco Franco",1,"Guerra Civil España"]
[11,"Uno de los detonantes de la guerra fue el asesinato del príncipe Francisco Fernándo de Austria, heredero de la Corona austrohúngaro. ","¿ Dónde se produjo el magnicidio ?","Mostar","Sarajevo","Montenegro","Belgrado","Sarajevo",2,"Historia La Primera Guerra Mundial"]
[12,"A la Gran Guerra están unidos varios nombres de políticos y militares de gran importancia en el transcurso del conflicto. ","¿ Cuál de los siguientes no forman parte de esos estadistas ?","Mariscal Fernándo Foch","Guillermo II de Alemania","Francisco José de Austria","Winston Churchill","Winston Churchill",4,"Historia La Primera Guerra Mundial"]
[13,"¿ Que país europero había sido el gran perdedor en el periodo colonialista pero que en cambio alcanzó una gran relevancia en el continente, tratando de imponer su dominio en la Gran Guerra ?",null,"Rusia","Gran Bretaña","Alemania","Francia","Alemania",3,"Historia La Primera Guerra Mundial"]
[14,"La división del imperio austrohúngaro supuso el nacimiento de una serie de nuevos países. ","¿ Cuál de los siguientes no nació de la desmembración de este imperio ?","Checolovaquia","Yugoslavia","Turquía","Polonia","Turquía",3,"Historia La Primera Guerra Mundial"]
[15,"¿ Cuál de los siguientes países, firmantes en su día de la Triple Alianza, rompió el acuerdo para unirse a la Triple Entente al comienzo de la guerra ?",null,"Rusia","Italia","Hungría","Francia","Italia",2,"Historia La Primera Guerra Mundial"]
[16,"Tras el final del conflicto bélico las naciones combatientes crearon un organismo internacional para garantizar la seguridad de la zona y el cumplimiento de los tratados de paz. ","¿ Qué nombre se le dio a esa institución ?","Sociedad de Naciones","Foro de Cooperación Europea","Organización de Naciones Unidas","Consejo de Versalles","Sociedad de Naciones",1,"Historia La Primera Guerra Mundial"]
[17,"En qué año dio comienzo la Primera Guerra Mundial ?",null,1917,1907,1911,1914,1914,4,"Historia La Primera Guerra Mundial"]
[18,"¿ Cuál fue la posición del Imperio Turco en la Primera Guerra Mundial ?",null,"Se mantuvo neutral","Formó parte de la Entente junto a Francia, Inglaterra y Rusia","Ayudó a los Imperios Centrales","Aprovechó para expandir su dominio sobre Oriente","Ayudó a los Imperios Centrales",3,"Historia La Primera Guerra Mundial"]
[19,"Alemania se vio obligada a pagar los gastos de la guerra por lo que su más importante región minera quedó en manos de Francia para su usufructo. ","¿ De que zona se trataba ?","Renania","Alsacia y Lorena","Turingia","Sarre","Sarre",4,"Historia La Primera Guerra Mundial"]
[20,"La división del imperio otomano supuso el nacimiento de una serie de nuevos países. ","¿ Cuál de los siguientes no nació de la desmembración de este imperio ?","Siria","Egipto","Palestina","Iraq","Egipto",2,"Historia La Primera Guerra Mundial"]
[21,"Indica cuál de las siguientes palabras está escrita incorrectamente",null,"digestible","bisel","vullicio","moribundo","vullicio",3,"Lengua"]
[22,"Indica cuál de las siguientes palabras está escrita incorrectamente",null,"subsidio","tuvieron","prohibir","hervir","prohibir",3,"Lengua"]
[23,"Indica cuál de las siguientes palabras está escrita incorrectamente",null,"habitavle","distribuir","apreciabais","burro","habitavle",1,"Lengua"]
[24,"Ordena las siguientes etapas del arte islámico",null,"Califato Omeya. Nazarí. Al-Ándalus","Nazari. Califato Omeya. Al-Ándalus","Califato Omeya. Al-Ándalus. Nazarí.","Nazarí. Al-Ándalus. Califato Omeya","Califato Omeya. Al-Ándalus. Nazarí.",3,"El arte islámico"]
[25,"Los ataurique y capiteles del conjunto arquitectónico de Medina Azahara se caracterizan por su detallismos y claroscuro muy marcado.","¿ Cómo se denomina esta talla ?","Talla de  orfebreria","Talla de avispero","Talla polilobulada","Talla Nasjí","Talla de avispero",2,"El arte islámico"]
[26,"¿ Qué es el ataurique ?",null,"Método de pintura que utiliza yeso","Construcción con estructura de madera","Representación de Alá","Decoración con yeso con formas de tipo vegetal","Decoración con yeso con formas de tipo vegetal",4,"El arte islámico"]
[27,"¿ Cómo es un arco que está enjarjado ?",null,"El arco cuyas dovelas inferiores están horizontales hasta cierta altura","El que tiene dos centros en la línea de las impostas y otro por debajo de ella","El que tiene sus salmeres a distinta altura","El formado por cuatro segmentos de arco de círculo","El arco cuyas dovelas inferiores están horizontales hasta cierta altura",1,"El arte islámico"]
[28,"¿ Qué es un modillón ?",null,"La parte de la cornisa en forma de S al revés que sirve de adorno pareciendo que la sostiene","Adorno que usa en pintura y arquitectura o esculplido que representa una hoja o una flor","La parte ancha de la sección central de un establamento","Ornamentación que termina en forma de follaje como hojas salientes y enrolladas en su extremidad","La parte de la cornisa en forma de S al revés que sirve de adorno pareciendo que la sostiene",1,"El arte islámico"]
[29,"¿ Cómo son los arcos mistilíneos ?",null,"Formados por pequeños arquillos","Tienen un perfil con formas curvas y rectas","Con cuatro segmentos de arco de círculo","Con salmeres a distinta altura","Tienen un perfil con formas curvas y rectas",2,"El arte islámico"]
[30,"Los almohades utilizaban en su decoración la sebqa.","¿ En qué consiste ?","Diferentes formas geométricas y vegetales","Caligrafía del Corán","Conjunto de arcos ciegos","Retícula de rombos","Retícula de rombos",4,"El arte islámico"]
[31,"¿ Qué es la quibla ?",null,"Nicho en el centro de la quibla y que es el lugar simbólico del Profeta  donde se colocan el Corán","Fuente en la se realizan abluciones o limpiezas rituales antes de la oración","La torre desde la que almédano o muecín llama a la oración","El muro que esta orientado a La Meca","El muro que esta orientado a La Meca",4,"El arte islámico"]
[32,"En las mezquitas árabes, ¿ qué es el Sabil ?",null,"Fuente en la que se realizan abluciones o limpiezas rituales antes de la oración","El muro que está orientado a La Meca","La sala de la oración","Lugar reservado para el califa","Fuente en la que se realizan abluciones o limpiezas rituales antes de la oración",1,"El arte islámico"]
[33,"En la arquitectura árabe es común decorar la enjuta o albanega.","¿ Que parte de los edificios es ésta ?","El estanque de agua que se ubica en el patio central","La parte externa de la balconada de la segunda planta de las mezquitas","La parte inferior de los muros","La superficie delimitada por parte externa de una arco y el alfiz que lo enmarca","La superficie delimitada por parte externa de una arco y el alfiz que lo enmarca",4,"El arte islámico"]
[34,"¿ Quién fue el primer líder de la Federación Rusa tras la caída del comunismo y la desmembración de lo que fue la Unión Soviética ?",null,"Dmitri Medvédev","Mijaíl Gobachov","Borís Yeltsin","Vladímir Purtin","Borís Yeltsin",3,"Historia El Comunismo"]
[35,"El líder Mijaíl Gorbachov, con su llegada al poder de la URSS en los años ochenta impone su plan denominado perestroika, que le valdría el Nobel de la Paz en 1990.","¿ Qué significa ese término ruso ?","Reforma","Transparencia","Libertad","Apertura","Reforma",1,"Historia El Comunismo"]
[36,"¿ Cómo se denomina la línea política defendida por Stalin y que mantenía que era posible una URSS socialista rodeado de un mundo capitalista ?",null,"Revolución permanente","Perestroika","Soviet de la Unión","Socialismos en un solo país","Socialismos en un solo país",4,"Historia El Comunismo"]
[37,"El régimen comunista de China disolvió en 1989 unas manifestaciones contra el régimen en la Plaza de Tian'anmen produciendo una masacre que conmocionó al mundo.","¿ Quiénes se manifestaban ?","Mujeres","Estudiantes","Sindicalistas","Campesinos","Estudiantes",2,"Historia El Comunismo"]
[38,"Varios países de la órbita soviética adaptaron su modelo de economía comunista, como fue el caso de Rumanía bajo la dictadura de...",null,"Nicolae Ceaucescu","Mariscal Tito","Omer Nishani","Slobodan Milosevic","Nicolae Ceaucescu",1,"Historia El Comunismo"]
[39,"Para el Partido Socialdemócrata Ruso, fudado a finales del XIX,","¿ quién debía ser la base de una revolución para conquistar el poder ?","El clero","La clase obrera","Los campesinos ","Loa aristócratas","La clase obrera",2,"Historia El Comunismo"]
[40,"La URSS ha aportado varios Nobel de Literatura a la Historia, pero casi todos terminaron exiliados de la represión soviética.","¿ Cuál de los siguientes Nobel fue en cambio fiel al régimen, ocupando puestos de responsabilidad en el Partido ?","Mijaíl Shñolojov","Alexander Solzhenitsin","Iván Bunin","Boris Pasternak","Mijaíl Shñolojov",1,"Historia El Comunismo"]
[41,"El gran rival de Stalin fue León Trotsky, que fue obligado a exiliarse a México en 1929. Allí fue asesinado por un espía de Stalin nacido en Barcelona.","¿ Cuál era su nombre ?","Valentín Moix","Ramón Mercader","Víctor Andrade","José Gallizo","Ramón Mercader",2,"Historia El Comunismo"]
[42,"Durante el largo mandato de Leonid Brézhnez, la URSS decidió invadir un país de su influencia para apoyar su régimen comunista. EE.UU., por su parte, ayudaría a este país en la guerra.","¿ Cuál era ?","Pakistán","Uzbekistán","Kazajistan","Afganistán","Afganistán",4,"Historia El Comunismo"]
[43,"En 1968, Checoslovaquia eligió como su líder a Alexander Dubcek, que propuso cambios democráticos en el país, algo a lo que la URSS se opuso atacando militarmente el país.","¿ Cómo se conoce a es momento ?","Perestroika","Primavera de Praga","Revolución de los Claveles","Bloqueo de los Suspiros","Primavera de Praga",2,"Historia El Comunismo"]
[44,"¿ Cuándo podemos hablar estrictamente de energía transmitida por radiación ?",null,"En la energía atómica","En campos eléctricos","En el vacio","En un cuerpo líquido","En el vacio",3,"El calor y la temperatura"]
[45,"¿ Cómo se denominan a aquellos materiales que son malos transmisores del calor ?",null,"Convectores","Refrigerantes","Conductores","Aislantes","Aislantes",4,"El calor y la temperatura"]
[46,"¿ Cuándo se produce la dilatación de un cuerpo, ya sea un sólido, un líquido o un gas ?",null,"Al aumentar la presión","Al aumentar su densidad","Al cambiar de estado","Por el cambio de temperatura","Por el cambio de temperatura",4,"El calor y la temperatura"]
[47,"El calor puede influir en el cambio de estados de la materia."," ¿ Cómo se denomina a la transformación por efecto del calor de un estado sólido a gaseoso sin pasar por el líquido ?","Sublimación","Fusión","Vaporización","Condensación","Sublimación",1,"El calor y la temperatura"]
[48,"¿ Qué necesita más intercambio ( cesión o absorción) de calor, convertir el agua de una cubitera en hielo o convertir ese hielo de nuevo en agua ?",null,"Depende de la temperatura de los cubitos","Convertir el agua en cubitos","El deshielo de los cubitos","El mismo","El mismo",4,"El calor y la temperatura"]
[49,"¿ Cuál es el modo en el que se transmite el calor en los objetos sólidos ?",null,"Inducción","Conducción","Radiación","Convección","Conducción",2,"El calor y la temperatura"]
[50,"¿ Cuál es el instrumento utilizado por los científicos para medir temperaturas a la que se encuentra la materia ?",null,"Termoscopio","Termómetro","Calorímetro","Termostato","Termómetro",2,"El calor y la temperatura"]
[51,"¿ Cuál de las siguientes afirmaciones sobre el calor y la temperatura no es cierta ?",null,"Un cuerpo a más temperatura tiene más capacidad de ceder calor a otro","El calor que desprende un objeto es indepediente de su masa","El tipo de material influye en el calor desprendido o absorbido por un cuerpo","Los cuerpos no tienen calor","El calor que desprende un objeto es indepediente de su masa",2,"El calor y la temperatura"]
[52,"Dentro del Sistema Internacional,","¿ cuál es la unidad oficial con la que se mide el calor ?","Caloría","Julio","Grado Kelvin","Grador Celsius","Julio",2,"El calor y la temperatura"]
[53,"Bajo qué nombre denominó Bertrand Russell a la relación entre la realidad y el lenguaje ?",null,"Principio de individuación","Giro lingüstico","Dialéctica serial","Atomismo lógico","Atomismo lógico",4,"Filosofía del lenguaje"]
[54,"¿ Cuál de las siguientes proposiciones son \" sin sentido \" ( sinnlos ) dentro de la teoría del lenguaje de Wittgenstein ?",null,"Es bueno ayudar a los demás","2 más 2 es igual a 4","Los unicornios pastan en la pradera","El Guernica es un cuadro muy bonito","2 más 2 es igual a 4",2,"Filosofía del lenguaje"]
[55,"En el Wittgenstein de la segunda etapa,","¿ cuál ha de ser el objetivo de la filosofía?","Describir","Descubrir los límites del lenguaje","Proponer teorías sobre el mundo que nos rodea","Determinar qué es verificable y qué no","Describir",1,"Filosofía del lenguaje"]
[56,"Para Wittgenstein,","¿ qué se encuentra dentro del espacio lógico ?","Todas las proposiciones verdaderas y falsas","Todas las proposiciones falsas","Todas las proposicones verdaderas","Todas las proposiciones verdaderas del munto real","Todas las proposiciones verdaderas y falsas",1,"Filosofía del lenguaje"]
[57,"¿ Cuál de las siguientes afirmaciones sobre la teoría figurativa del sentido de Wittenstein no es correcta ?",null,"Una proposición ha de compartir la misma estructura que aquello que describe","Una proposición se articula de una forma lógica","Comprender una proposición es comprender el hecho que ella describe","El lenguaje debe permitirnos descubrir la estructura de lo real","El lenguaje debe permitirnos descubrir la estructura de lo real",4,"Filosofía del lenguaje"]
[58,"En el siglo XIX se produjo en España un proceso por el cual las tierras y edificios en = manos muertas \" ( Iglesias y órdenes religiosas) pasasaban a manos del Estado, pudiéndose así reorganizar el interior de las ciudades.","¿ Cómo se llamó a ese proceso ?","Desamortización","Privación patrimonial","Espropiación","Confiscación","Desamortización",1]
[59,"Una característica habitual del urbanismo español es la presencia de las plazas mayores en el centro de la urbe como punto de encuentro entre ciudadanos.","¿ En qué época tuvo lugar ese florecimiento de plazas ?","Siglo XX","Edad Moderna","Edad Media","Edad Contemporánea","Edad Moderna",2,"Geografía las ciudades de España"]
[60,"Ante los problemas actuales de acceso a la vivienda debido a su alto precio, las Administraciones públicas españolas ofrecen pisos a las rentas menores para que puedad acceder a una vivienda digna.","¿ Qué nombre reciben ?","Vivienda de Inserción","Vivienda de Protección Oficial","Vivienda a Precio Tasado","Vivienda de Ayuda Social","Vivienda de Protección Oficial",2,"Geografía las ciudades de España"]
[61,"¿ Cuál de las siguientes religiones no adora a ningún dios en concreto, sino que es una forma de vida para liberar al hombre de los deseos mundanos ?",null,"Judaísmo","Animista","Budismo","Hinduismo","Budismo",3,"Geografía"]
[62,"¿ Qué se entiende por Estado de Derecho ?",null,"Las reguladas por una Constitución","El que viene impuesto por un golpe de estado","Las monarquías en las que el legítimo heredero tiene derecho al trono","Aquel en la los poderes del Estado han de cumplir la ley","Aquel en la los poderes del Estado han de cumplir la ley",4]
[63,"¿ Cuál es el río sagrado para los hinduiestas, a donde arrojan las cenizas de sus muertos y en el que se bañan para purificar su alma ?",null,"Ganges","Éufrates","Jordan","Tigris","Ganges",1]
[64,"La Organización de Naciones Unidas (ONU) es el organismo internacional más importante del mundo. Agrupa a 192 países que tratan de fomentar las relaciones entre países para mantener la paz y la seguridad.","¿ En qué año fue fundada la ONU ?",1939,1945,1973,1968,1945,2]
[65,"Dentro de la organización de un estado,","¿ quién es el encargado de redactar las leyes ?","Poder legislativo","Poder ejecutivo","Poder militar","Poder judicial","Poder legislativo",1]
[66,"¿ Cuál fue el secto económico más importante en el mundo hasta la llegada de la revolución industrial en el siglo XIX ?",null,"Secundario","Terciario","Construcción","Primario","Primario",4]
[67,"El cristianismo es la religión más practicada en el mundo entero. Está dividida fundamentalmente en tres ramas distintas.","¿ Cuál de las siguientes no es una de ellas ?","Protestante","Católica","Judía","Ortodoxa","Judía",3]
[68,"¿ Con qué camina un mamífero ungulado ?",null,"Con los dedos","Con las plantas de los pies","Arrastrándose","Con las pezuñas","Con las pezuñas",4,"Ciencias de la naturaleza los seres vivos "]
[69,"Los gasterópodos, como los caracoles o las babosas, son hermafroditas.","¿ Qué siginifica ?","Se reproducen con individuos del mismo género","Tienene sexo masculino y femenino","Se reproducen de forma asexual","Depositan óvulos y espermatozoides por separado","Tienene sexo masculino y femenino",2,"Ciencias de la naturaleza los seres vivos "]
[70,"¿ En cuál de estos lugares es habitual encontrarse con el musgo, una de las primeras plantas en aparecer en la Tierra ?",null,"Zonas húmedas","En zonas urbanas","Desiertos","En lugares con clima seco","Zonas húmedas",1,"Ciencias de la naturaleza los seres vivos "]
[71,"¿ Qué tipo de organismos es la levadura que, gracias a la fermentación, es de gran utilidad en la producción del pan o la cerveza ?",null,"Un alga","Un hongo","Un protozoo","Una bacteria","Un hongo",2,"Ciencias de la naturaleza los seres vivos "]
[72,"¿ Cuál es la unidad más pequeña de vida animada y de la que estamos hecho todos los seres vivos ?",null,"Viruos","Célula","Bacteria","Cigoto","Célula",2,"Ciencias de la naturaleza los seres vivos "]
[73,"Dentro de la planta, las hojas son las encargadas de realizar la fotosíntesis,","¿ en qué consiste este proceso vital ?","Utilizar la energía luminosa para obtener alimento","Recoger el agua de lluvia","Permitir la reproducción con otras plantas","Producir semillas para la reproducción sexual","Utilizar la energía luminosa para obtener alimento",1,"Ciencias de la naturaleza los seres vivos "]
[74,"Los gimnospermas son árboles o arbustos de tronco leñoso que reciben el nombre de semillas desnudas.","¿ Por qué ?","Su semilla no genera nuevas plantas","Aseguran su polinización por medio del viento","Su semilla no está cubierta por el ovario","Su semilla no da verdadero fruto","Su semilla no está cubierta por el ovario",3,"Ciencias de la naturaleza los seres vivos "]
[75,"¿ Cómo afecto la crisis a los países menos desarrollados y que fundamentalmente practicaban un monocultivo de productos agrarios, como el café en Brasil o la lana australiana ?",null,"Les favoreció al llegar a mecados que antes monopolizaban las grandes naciones","Al no haberse involucrados por la Guerra Mundial, se vieron menos afectados","La sufrieron intesamente al reducirse la demanda desde Europa y EE.UU.","Levemente, al cruzar un mercado común entre los países menos desarrollados","La sufrieron intesamente al reducirse la demanda desde Europa y EE.UU.",3,"Historia del mundo contemporáneo La economía"]
[76,"¿ El 24 de qué fatídico mes de 1929 se produjo el crack de la bolsa de Nueva York, en un \"jueves negro\" en el que salieron a la venta 13 millones de acciones que nadie quiso comprar ?",null,"Octubre","Agosto","Abril","Febrero","Octubre",1,"Historia del mundo contemporáneo La economía"]
[77,"¿ Cuál de las siguientes medidas fue tomada por la administración de Roosevelt mediante la Ley de Rescate Industrial Nacional ?",null,"Permitió la libertad sindical y mejorar la situación de los trabajadores","Prohibió los nonopolios","No influyó en la fijación de precios","Aumentó la producción industrial","Permitió la libertad sindical y mejorar la situación de los trabajadores",1,"Historia del mundo contemporáneo La economía"]
[78,"El presidente estadounidense Franklin D. Roosevelt propuso para su país un plan económico de salvación en el año 1933 denominado New Deal.","¿ Cuál era la base de su programa ?","Un periodo de autarquía eliminando las importaciones y fomentando el mercado nacional","La intervención del Estado en la economía","La explotación intesiva de Alaska para buscar recursos naturales","Espulsión de los inmigrantes europeos para potenciar el empleo local","La intervención del Estado en la economía",2,"Historia del mundo contemporáneo La economía"]
[79,"El crak de la bolsa de valores de Nueva York supuso una gran crisis que llevó a la ruina a miles de empresas y a millones de trabajadores al paro.","¿ En qué calle de la ciudad americana se encuentra esta bolsa ?","Brodway","Manhattan","Wall Street","Quinta Avenida","Wall Street",3,"Historia del mundo contemporáneo La economía"]
[80,"Indica cuál de las siguientes razones no se encuentra entre las que provocaron el crack de la bolsa de 1929",null,"Especulación financiera","Exceso de demanda no atendida","Sobreproducción","Crecimiento del crédito","Exceso de demanda no atendida",2,"Historia del mundo contemporáneo La economía"]
[81,"¿ Cuál fue la actitud del presidente norteamericano Herbert C. Hoover tras el crack del 29 y la posterior depresión ?",null,"un intervencionismo del Estado en todos los sectores económicos","Pedir préstamos a las economías europeas para atajar la crisis","Considerar una crisis pasajera y no actuar","Cambiar la política económica y tender hacia el comunismo","Considerar una crisis pasajera y no actuar",3,"Historia del mundo contemporáneo La economía"]
[82,"¿ Dónde se jugó la primera final de la UEFA que ganó el Sevilla FC ?",null,"Eindhoven","París","Münich","Mónaco","Eindhoven",1]
[83,"¿ Quién fue el entrenador que dirigió al Sevilla FC a la victoria de su primera copa de la UEFA ?",null,"Marcelino","Manolo Jiménez","Juande Ramos","Joaquín Caparrós","Juande Ramos",3]
[84,"¿ Cuándo ganó el Sevilla la Supercopa de Europa ?",null,2005,2008,2006,2007,2006,3]
[85,"¿ Contra qué equipo jugó el Sevilla FC la 2º final de la Copa de la UEFA que ganó ?",null,"CSKA de Moscú","Zenit de San Petersburgo","Arsenal","Español","Español",4]
[86,"¿ Cuál es el estadio del Sevilla ?",null,"Chapin","Benito Villamarín","La Nueva Condomina","Ramón Sánchez Pizjuán","Ramón Sánchez Pizjuán",4]
[87,"¿ Qué jugador murió jugando frente al Getafe ?",null,"Dani Jarque","Javi Navarro","Pablo Alfaro","José Antonio Puerta","José Antonio Puerta",4]
[88,"¿ Cómo se llaman las palabras cuya última sílaba es tónica ?",null,"Esdrújulas","Sobresdrújulas","Agudas","Llanad","Agudas",3,"Lengua el acento"]
[89,"¿ Qué sílaba de una palabra ha de estar acentuada para que ésta sea considerada llana?",null,"Última","Antepenúltima","Penúltima","Primera","Penúltima",3,"Lengua el acento"]
[90,"¿ Cuándo llevan tilde las palabras esdrújulas y sobresdrújulas ?",null,"Si no van en mayúsculas","Si la palabra en vocal, n, s","Siempre","Si terminan en consonante","Siempre",3,"Lengua el acento"]
[91,"Señala cuál de las siguientes palabras carece de sílaba tónica",null,"Más","De","Pedro","Todas tienen","Todas tienen",4,"Lengua el acento"]
[92,"¿ Cómo se llama la representación gráfica que algunas palabras llevan en una sílaba para remarcar el énfasis sobre ella ?",null,"Acento","Tónica","Tilde","Grafo","Tilde",3,"Lengua el acento"]
[93,"Indica cuál de las siguientes oraciones hace uso incorrecto de la tilde diacrítica",null,"Aún saliendo ahora llegaremos tarde","Cuida el libro que te dé el profesor","Ya sé que regalarte para el cumpleaños","Sólo quiero descansar en verano","Aún saliendo ahora llegaremos tarde",1,"Lengua el acento"]
[94,"¿ Qué tipo de palabra es \" cuéntamelo\" según su acentuación ?",null,"Esdrújula","Aguda","Sobresdrújula","Llana","Sobresdrújula",3,"Lengua el acento"]
[95,"Indica cuál de las siguientes oraciones hace uso incorrecto de la tilde diacrítica",null,"él me va a pagar el viaje","no sé cuándo voy a volver a verle","sé lo dije en numerosas ocasiones","tú eres el culpable de la situación","sé lo dije en numerosas ocasiones",3,"Lengua el acento"]
[96,"Las palabras agudas llevan tilde en función de su terminación.","¿ En cual de estas terminaciones no procede poner tilde ?","r","a","n","s","r",1,"Lengua el acento"]
[97,"Indica cuál de las siguientes oraciones hace uso incorrecto de la tilde diacrítica",null,"Me gusta mucho el té","Ese libro es para mí","¿ Quieres más postre ?","Voy a ayudarte sí es lo que quieres","Voy a ayudarte sí es lo que quieres",4,"Lengua el acento"]
[98,"¿ Cuál es el complemento directo en la oración ?","\" Mario lo encontró escondido en un rincón \"","Mario","no tiene","en un rincón","lo","lo",4,"Lengua"]
[99,"A veces, el masculino y femenino utilizan palabras distintas para cada género, en vez de usas morfenas.","Indica cuál de las siguientes palabras no responde a uno de esos casos","caballo","oveja","nuera","vampiro","vampiro",4,"Lengua"]
[100,"¿ Qué nombre  reciben las divisiones fonológicas en las que se dividen las palabras ?",null,"sílabas","morfenas","letras","fonemas","sílabas",1,"Lengua"]
[101,"Señala cuál de las siguientes afirmaciones sobre las sílabas no es correcta",null,"Existen sílabas abiertas y cerradas","En cada sílaba sólo pude haber una vocal","Una vocal puede formar por sí mismo una sílaba","La consonante necesitan una vocal para formar una sílaba","En cada sílaba sólo pude haber una vocal",2,"Lengua"]
[102,"¿ Cuál es la única letra de nuestro alfabeto que no representa ningún fonema, por lo que se considera muda ?",null,"G","Q","H","Y","H",3,"Lengua"]
[103,"¿ Cuándo una sílaba tiene la consideración de abierta ?",null,"Cuando tiene dos o más vocales","Cuando termina en vocal","Cuando termina en consonante","Cuando tiene una sola letra","Cuando termina en vocal",2,"Lengua"]
[104,"Indica en cuál de las siguientes palabras con la letra ( g ) su fonema es distinto al resto",null,"agente","Gilberto","genio","Vigo","Vigo",4,"Lengua"]
[105,"¿ Qué nombre recibe una sílaba que está conformado por dos vocales ?",null,"diptongo","bisílaba","triptongo","hiato","triptongo",3,"Lengua"]
[106,"¿ Cómo se denomina a la descripción del carácter, acciones y costumbres de una persona ?",null,"cronografía","caricatura","etopeya","prosopografía","etopeya",3,"Lengua"]
[107,"Ordena los siguientes tipos de estrofas de mayor a menor número de versos",null,"redondilla, sextilla, octavilla, terceto","redondilla, octavilla, sextilla, terceto","octavilla, sextilla, redondilla, terceto","octavilla,sextilla, terceto, redondilla","octavilla, sextilla, redondilla, terceto",3,"Lengua"]
[108,"Indica cuál de las siguientes palabras está escrita incorrectamente",null,"osamenta","enmohecer","halagar","ortofrutícola","ortofrutícola",4,"Lengua"]
[109,"Indica cuál de las siguientes palabras está escrita incorrectamente",null,"vihuela","hipocresia","hacer","hechamos","hechamos",4,"Lengua"]
[110,"Indica cuál de las siguientes palabras está escrita incorrectamente",null,"hipoglucemia","habitar","aber","hipocresía","aber",3,"Lengua"]
[111,"Indica cuál de las siguientes palabras está escrita incorrectamente",null,"heptasílabo","omoplato","ueca","hemiciclo","ueca",3,"Lengua"]
[112,"Indica cuál de las siguientes palabras está escrita incorrectamente",null,"ahuecar","feaciente","oscense","hemorragia","feaciente",2,"Lengua"]
[113,"Indica cuál de las siguientes palabras está escrita incorrectamente",null,"veículo","heptasílabo","alcahuete","haber","veículo",1,"Lengua"]
[114,"Indica cuál de las siguientes palabras está escrita incorrectamente",null,"inadecuado","echamos","ovario","hostra","hostra",4,"Lengua"]
[115,"Indica cuál de las siguientes palabras está escrita incorrectamente",null,"bah","orfandad","heliocentrismo","enmoecer","enmoecer",4,"Lengua"]
[116,"¿ Cuál de los siguientes idiomas actuales no es una lengua romance, ","es decir, no proviene del latín ?","inglés","francés","italiano","catalán","inglés",1]
[117,"¿ Hay algún país en la actualidad en la que el latín sea lengua oficial ?",null,"El Vaticano","Italia","Francia","no, es una lengua muerta","El Vaticano",1]
[118,"En el siglo XVI se descubrió el parecido entre la lengua latina y griega con el sánscrito, una de las lenguas indoeruropeas más antiguas que se conocen.","¿ De qué país procede el sánscrito ?","India","Rusia","Japón","China","India",1]
[119,"En la antigua Roma se hablaba el latín culto, más clásico, y el latín vulgar, del pueblo llano.","¿ Qué acontecimiento supuso la ruptura definitiva de ambos y la degeneración del latín en decenas de lenguas diferenciadas en los sigloes venideros ?","caida del imperio romano","la llegada de la Edad Media","llegada del cristianismo","la destrucción de la biblioteca de Alejandría","caida del imperio romano",1]
[120,"¿ Cuál de las siguientes afirmaciones sobre el latín es incorrecta ?",null,"El castellano es una lengua romance que proviene del latín","Todas las lenguas europeas provienen del latín","En Roma se hablaba dos versiones de latín: el culto y el popular ( o vulgar)","El latín proviene del indoeuropero","Todas las lenguas europeas provienen del latín",2]
[121,"¿ A qué gran imperio de la antigüedad debemos la difusión del latín, de la que proviene nuestro castellano actual ?",null,"Griego","Bizantino","Romano","Egipcio","Romano",3]
[122,"Con la invasión árabe de la Península Ibérica, el latín hablado en España fue tomando influencias árabes, creándose una variante del latín conocida como...",null,"alifato","provenzal","mozárabe","jarcha","mozárabe",3]
[123,"Filólogo",null,"cigüeñal","lingüista","lengüeta","piragüista","lingüista",2]
[124,"dos idiomas",null,"bilingüe","lengüeta","pingüe","mengüe","bilingüe",1]
[125,"pudor",null,"desagüe","ungüento","vergüenza","cigüeñal","vergüenza",3]
[126,"humedad",null,"güisque","pingüe","agüilla","agüero","agüilla",3]
[127,"pomada",null,"ungüento","vergüenza","agüero","desagüe","ungüento",1]
[128,"maleducado",null,"zarigüeya","halagüeño","paragüero","sinvergüenza","sinvergüenza",4]
[129,"¿ Mediante qué tratado reconoció Gran Bretaña en 1783 de forma oficial la independencia de su principal colonia en América, los Estados Unidos ?",null,"Tratado de Filadelfia","Tratado de Virginia","Tratado de París","Tratado de Yorktown","Tratado de París",3,"Independencia de los Estados Unidos"]
[130,"En 1867 Estados Unidos compró el estado de Alaska por un importe de siete millones de dólares.","¿ Cuál fue el país vendedor ?","Gran Bretaña","Francia","Rusia","Canada","Rusia",3,"Independencia de los Estados Unidos"]
[131,"¿ Cuál fue la posición del resto de países europeos ante la guerra de la independencia americana contra su metrópoli británica ?",null,"Apoyaron a EE.UU. para evitar el dominio británico","Aprovecharon para atacar a Inglaterra","Se mantuvieron neutrales sin apoyas a ninguno de los dos bandos","Apoyaron a Inglaterra por miedo a perder sus propias colonias en América","Apoyaron a EE.UU. para evitar el dominio británico",1,"Independencia de los Estados Unidos"]
[132,"Gran Bretaña establecio numerosos impuestos a su colonia americana para financiar sus gastos nacionales. En 1776, en la ciudad de Boston hubo un motín para protestar por un nuevo impuesto establecido sobre un producto.","¿ Cuál ?","plomo","té","azúcar","vidrio","té",2,"Independencia de los Estados Unidos"]
[133,"¿ De qué país obtuvo su independencia Estados Unidos en el año 1776 ?",null,"Portugal","España","Francia","Gran Bretaña","Gran Bretaña",4,"Independencia de los Estados Unidos"]
[134,"¿ Cuál de los siguientes Estados norteamericanos fue comprado por el nuevo país a la corona española en 1819 ?",null,"Florida","Texas","Luisiana","Nuevo México","Florida",1,"Independencia de los Estados Unidos"]
[135,"Cuál de las siguientes afirmaciones sobre la Constitución norteamericana de 1787 ","no es correcta ?","Establecía la república como forma de gobierno","promulgaba la separación de poderes","Recogía el sufragio universal para hombres y mujeres","Es la primera Constitución escrita de la historia","Recogía el sufragio universal para hombres y mujeres",3,"Independencia de los Estados Unidos"]
[136,"¿ El 4 de julio de qué año fue promulgada la Declaración de Independencia de los Estado Unidos ?",null,1812,1789,1776,1801,1776,3,"Independencia de los Estados Unidos"]
[137,"¿ Quién fue el primer presidente de los Estados Unidos, cargo que ocupó entre 1789  y 1797 ?",null,"John Adams","George Washington","Thomas jefferson","Benjamin Franklin","George Washington",2,"Independencia de los Estados Unidos"]
[138,"Indica cuál de las siguientes medidas no venía recogida en la Constitución de Cádiz de 1812 ?",null,"División de poderes","Soberania nacional","Libertad de culto","Ampliación de derechos y libertades","Libertad de culto",3,"Historia de España"]
[139,"¿ Cuál fue la forma de gobierno de Fernándo VII durante sus primero seis años de reinado tras llegar el trono en 1814 ?",null,"Liberalismo","Absolutismo","Feudalismo","Parlamentarismo","Absolutismo",2,"Historia de España"]
[140,"Ante la falta de éxito contra las tropas n 250.000 soldados de su ejército internacional, que acabó con el triunfo francés en territorio español.",null,"Garde nationale","Batallón Charlemagne","Grande Armé","Armée du Rhin","Grande Armé",3,"Historia de España"]
[141,"¿ Cómo se llamó a las personas que, en España, simpatizaron con la ocupación francesa durante el reinado de José I de Bonaparte ?",null,"Colaboracionistas","Afrancesados","Gabachos","Bonapartianos","Afrancesados",2,"Historia de España"]
[142,"En 1796, Manuel Godoy firma un tratado con Francia de ayuda bélica con el objetivo de derrotar a Inglaterra, enemigo común de ambos países.","¿ Dónde se firmó este tratado ?","Fontainbleau","Basilea","San Ildefonso","Rosellón","San Ildefonso",3,"Historia de España"]
[143,"En 1797, España se enfrentó y cayó derrotada en el Cabo de San Vicente de Cádiz al ejército naval británico liderado por el almirante...",null,"John Byron","George Vancouver","Noratio Nelson","Duque de Wellington","Noratio Nelson",3,"Historia de España"]
[144,"El 23 de octubre de 1940 de produce una reunión entre Franco y Hitler con la que el Führer pretendía la entrada de España en la Segunda Guerra Mundial.","¿ Dónde se produjo la reunión entre ambos líderes ?","Barcelona","Hendaya","Berlín","París","Hendaya",2,"Historia de España dictadura de Franco"]
[145,"Arias Navarro, ante la crisis económica y el descontento social, realizó un intento de apertura del régimen.","¿ Con qué nombre se conoce a esta política. recordando el día en el que la propuso en las cortes ?","Espíritu del 1 de junio","Espíritu  del 4 de febrero","Espíritu del 6 de marzo","Espíritu del 12 de febrero","Espíritu del 12 de febrero",4,"Historia de España dictadura de Franco"]
[146,"En 1975, Marruecos aprovechó la debilidad del gobierno de Franco para ocupar la provincia española del Sahara y reinvindicar sus soberanía.","¿ Cómo se conoció a este plan marroquí ?","Guerra del Rif","Movimiento de Liberación","Marcha verde","Asedio del Desierto","Marcha verde",3,"Historia de España dictadura de Franco"]
[147,"Los exiliados de la República formaron un gobierno que desde 1945, y liderado por Diego Martínez Barrio, tuvo su sede en...",null,"Inglaterra","Francia","Argentina","México","México",4,"Historia de España dictadura de Franco"]
[148,"¿ Con qué nombre se conoció a la guerrilla antifranquista que, con ataque esporádicos y con poca repercusión, se opusieron militarmente al régimen los primeros años del posguerra ?",null,"Papus","Maquis","Milicias","Ejército Secreto","Maquis",2,"Historia de España dictadura de Franco"]
[149,"En 1975 Fernando Herrero Tejedor, es nombrado ministro por su carácter aperturista, pero fallece al poco en accidente de tráfico, introduciendo en política a su joven secretario personal.","¿ Quién era ?","Felipe González","Leopoldo Calvo Sotelo","Santiago Carrillo","Adolfo Suárez","Adolfo Suárez",4,"Historia de España dictadura de Franco"]
[150,"La censura se instauró en el regimen que vetó libros o películas e incluso se llegó a prohibir una fiesta popular.","¿ Cuál ?","Día del Alzamiento","La Semana Santa","La Navidad","El Carnaval","El Carnaval",4,"Historia de España la II Republica"]
[151,"El triunfo de la izquierda y la violencia desatada por exltados de ambos bandos propició un alzamiento militar por parte de la derecha que fue organizado por el gobernador militar de Navarra, ","el general...","Francisco Franco","Miguel Primo de Rivera","José Sanjurjo","Emilio Mola","Emilio Mola",4,"Historia de España la II Republica"]
[152,"Distintos textos estatutarios fueron aprobados en País Vasco, Andalucia y Galicia, pero finalmente quedaron truncados en 1933.","¿ Por qué ?","No fueron aprobados en plebiscito","No contaron con el apoyo de todos los políticos nacionalistas","Por el triunfo de la derecha en las elecciones","Exigian una autodeterminación, y la República sólo permitía la autonomía","Por el triunfo de la derecha en las elecciones",3,"Historia de España la II Republica"]
[153,"Indica cuál de las siguientes actuaciones en materia educativa no fue acometida durante el gobierno de la República",null,"Se crearon miles de escuelas","Se permitió la educación religiosa en la escuela","Se creó el Patronato de Misiones Pedagógicas para difundir la cultura","Se subio el sueldo a los profesores","Se permitió la educación religiosa en la escuela",2,"Historia de España la II Republica"]
[154,"Tras la victoria de la derecha en 1933, el presidente Alcalá Zamora formó un gobierno sin el CEDA, el partido más votado.","¿ Cuál era el recelo del presidente por el partido de Gil Robles ?","El CEDA no había jurado lealtad a la República","Gil Robles se había visto envuelto en varios escándalos de estraperlo","Alcala Zamora quería ser el líder del CEDA, y así apartó a Gil Robles","Alcalá Zamora temía que el CEDA contactara con anarquistas radicales","El CEDA no había jurado lealtad a la República",1,"Historia de España la II Republica"]
[155,"¿ Qué cuerpo de seguridad fue creado por Azaña en 1932 como parte de su profunda reforma militar ?",null,"La legión","Policia Nacional","Guardia Civil","Guardia de Asalto","Guardia de Asalto",4,"Historia de España la II Republica"]
[156,"En 1933 se celebran elecciones al parlamento español, las segundas de la República recien instaurada. De las siguientes afirmaciones sobre estos comicios hay una que no es cierta.","¿ Cuál ?","La participación fue muy escasa por el descontento de los ciudadanos","Fue la primera vez que pudieron votar las mujeres","La división de la izquierda y la abstención anarquista favorecieron a la derecha","La derecha obtuvo la victoria","La participación fue muy escasa por el descontento de los ciudadanos",1,"Historia de España la II Republica"]
[157,"Las relaciones entre la Iglesia y la República no fueron buenas debido a las leyes aprobadas que tendían hacia un país laico.","¿ Qué se prohibía mediante la Ley de congregaciones religiosas de 1933 ?","La libertad de culto","La enseñanza religiosa en las escuelas","El matrimonio religioso","Los funerales de Estado","La enseñanza religiosa en las escuelas",2,"Historia de España la II Republica"]
[158,"¿ Cuál era la función de los Jurados Mixtos, creados por una ley de noviembre de 1931 durante la República ?",null,"Incorporar poco a poco a la mujer en la vida política","Mediar entre trabajadores y patronos en conflictos laborales","Juzgar los crímenes cometidos durante la Dictadura de Primo de Rivera","Expropiar las tierras no labradas y repartirlas entre los campesino","Mediar entre trabajadores y patronos en conflictos laborales",2,"Historia de España la II Republica"]
[159,"En 1933 surge el grupo Falange Española, que agoga por un gobierno totalitario de tendencias fascistas y marcado nacionalismo español.","Quién fue su fundador ?","José Calvo Sotelo","José Antonio Primo de Rivera","Onésimo Redondo","José María Gil Robles","José Antonio Primo de Rivera",2,"Historia de España la II Republica"]
[160,"¿ Las obras de qué pintor ha aparecido más veces en los anversos de los billetes de peseta ?",null,"Pablo Picaso","Bartolomé Esteban Murillo","Francisco de Goya","Diego Velázquez","Francisco de Goya",3,"La peseta la pela"]
[161,"¿ Qué valor tenía el primer billete en pesetas impreso por el Banco de España ?",null,25,100,10,5,25,1,"La peseta la pela"]
[162,"¿ Quién aparecía en el último modelo billete de 1 peseta impreso ?",null,"Francisco Picaso","Marqués de Santa Cruz","Miguel de Cervantes","Leopoldo Alas Clarin","Marqués de Santa Cruz",2,"La peseta la pela"]
[163,"¿ Cuál era el valor de la moneda de plata que sirvió de homenaje a la peseta cuando desapareció ?",null,"500 pesetas","1000 pesetas","5000 pesetas","2000 pesetas","2000 pesetas",4,"La peseta la pela"]
[164,"¿ Desde que año se utilizó la marca de agua como principal sistema de seguridad ante la falsificación de moneda ?",null,1884,1922,null,null,1884,1,"La peseta la pela"]
[165,"¿ En que talleres se ha fabricado la peseta desde su instauración en el siglo XIX ?",null,"Talleres de la Moneda","Talleres del Timbre Nacional","Fábrica Nacional de Moneda y Timbre","Timbre y Moneda Real","Fábrica Nacional de Moneda y Timbre",3,"La peseta la pela"]
[166,"¿ Cuántos años estuvo vigene en España la peseta ?",null,125,133,98,109,133,2,"La peseta la pela"]
[167,"¿ Cuál fue el billete en pesetas de más alto valor puesto en circulación ?",null,5000,10000,2000,1000,10000,2,"La peseta la pela"]
[168,"¿ En que unidades se divide la peseta ?",null,"centavos","duros","reales","céntimos","céntimos",4,"La peseta la pela"]
[169,"¿ En qué año dejo de cotizar la peseta en los mercados, al ser sustituida por el euro?",null,1998,1995,2000,2002,1998,1,"La peseta la pela"]
[170,"¿ La adhesión a qué sistema, que finalmente no se produjo, supuso el nacimiento de la peseta en el siglo XIX ?",null,"Sistema métrico decimal","Unión Monetaria Latina","Unión transnacional","Sistema europeo de moneda","Unión Monetaria Latina",2,"La peseta la pela"]
[171,"¿ Cuándo fue acuñada la primera moneda en la que aparecía la palabra \"peseta\"",null,1874,1808,1835,1795,1808,2,"La peseta la pela"]
[172,"¿ Cuántas pesetas son un euro ?",null,166.386,168.386,166.36879999999999,163.68600000000001,166.386,1,"La peseta la pela"]
[173,"¿ Quién aparecía en los billetes de 2.000 pesetas ?",null,"Francisco Pizarro","Cristóbal Colón","Juan Carlos I","José Celestino Mutis","José Celestino Mutis",4,"La peseta la pela"]
[174,"¿ Cómo se llamó el decreto ley que estableció la peseta como unidad monetaria nacional ?",null,"Figuerola","Isabelino","Serrano","Torre","Figuerola",1,"La peseta la pela"]
[175,"¿ De qué otra manera coloquial era conocida la moneda de cinco céntimos ?",null,"real","duro","perra chica","perra gorda","perra chica",3,"La peseta la pela"]
[176,"¿ En que equipo gano Mourinho su primer título europeo ?",null,"Chesea","Inter de Milan","Oporto","Schalke","Oporto",3,"Futbol"]
[177,"¿ En qué equipos estuvo Samuel Eto'o ?",null,"Malaga, Milan, Barça","Napoles, Barça, Santos","Real Madrid, Mallorca, Barça","Barça, Mallorca, Valencia","Real Madrid, Mallorca, Barça",3,"Futbol"]
[178,"¿ En que equipo juega Essien y Malouda ?",null,"Chelsea","Barça","Inter de Milan","Manchester City","Chelsea",1,"Futbol"]
[179,"¿ Quién  es el actual bota de oro del mundo ?","año 2011","Drogba","Cristiano Ronaldo","Raul","Leo Messi","Cristiano Ronaldo",2,"Futbol"]
[180,"¿ Quien gano el balón de oro en 2007 ?",null,"Ronaldinho","kaka","Cristiano Ronaldo","Massi","kaka",2,"Futbol"]
[181,"¿ Que jugador del Barça a marcado gol en todas las competiciones ?",null,"Xavi","Pedro","Iniestas","Massi","Pedro",2,"Futbol"]
[182,"Los autores de obras de teatro pueden recurrir al uso del soliloquio, que es un tipo de diálogo con una característica muy concreta.","¿ Cuál ?","Un personaje habla consigo mismo","El personaje habla con el público","El narrador cuenta lo que dice el personaje en su forma original","El narrador hable como si fuera el personaaje","Un personaje habla consigo mismo",1,"Lengua dialogo"]
[183,"¿ Cómo se denomina al género periodístico que, mediante un diálogo con preguntas y respuestas, trata de obtener una información ?",null,"Coloquio","Entrevista","Debate","Conversación","Entrevista",2,"Lengua dialogo"]
[184,"¿ Cuál es el medio de comunicación que, dadas sus características como la ausencia de imágenes, potencia en mayor medida la conversación ?",null,"televisión","radio","internet","cine","radio",2,"Lengua dialogo"]
[185,"Si en un país democrático se aprobara en el parlamento por mayoría simple un ley que discriminara a una raza,","¿ podría considerarse legítima esa ley ?","No, al aprobarse por mayoría simple y no absoluta","No, al ir en contra de los Derechos Humanos","Si, al haber sido aprobado en el parlamenteo","Sí, si recibe la aprobación del Senado","No, al ir en contra de los Derechos Humanos",2,"El Estado Democratico"]
[186,"¿ En qué año se aprobó la vigente Constitución Española ?",null,1978,1812,1936,1975,1978,1,"El Estado Democratico"]
[187,"¿ A qué se refería Nicolás Maquiavelo cuando hablaba de la Razón de Estado ?",null,"El Estado beneficia más a los ciudadanos cuando éstos no interfieren","El Estado puede ocasionalmente reducir las libertades para mantener su poder","El Estado siempre tiene la razón frente a los ciudadanos","El Estado se constituye gracias a la elección racional de los ciudanos","El Estado puede ocasionalmente reducir las libertades para mantener su poder",2,"El Estado Democratico"]
[188,"¿ Qué significa el término griego democracia ?",null,"Bien supremo","Norma escrita","Justicia social","Poder del pueblo","Poder del pueblo",4,"El Estado Democratico"]
[189,"Presidentes de Latinoamérica:","En que año ganó Hugo Chávez las elecciones Presidenciales ?",1998,1997,1999,2000,1998,1]
[190,"Óscar a la mejor película:","Quién ganó el Oscar a la mejor película en 1951","La reina de África","Un americano en París","Un lugar del sol","Un tranvía llamado deseo","Un americano en París",2]
[191,"Generación del 27: ","Qué diplomático chileno escribió \" En España con Federico García Lorca\"?","Carlos Morla Lynch","Vicente Huidobro","Gabriela Mistral","Pablo Neruda","Carlos Morla Lynch",1]
[192,"Historia de Canarias:","¿ En que año atacó Horacio Nelson la ciudad de Santa Cruz de Tenerife ?",1850,1657,1596,1797,1797,4]
[193,"Geografía española:","¿ Qué provincia española tiene más kilómetros de costa ?","Santa Cruz de Tenerife","Islas Baleares","Las Palmas de Gran Canarias","La Coruña","Islas Baleares",2]
[194,"Cine clásico:","¿ En qué año se estrenó Tiempos Modernos ?",1942,1936,1927,1932,1936,2]
[195,"Tintín:","¿ En qué título de Tintín aparece por vez primera el Capitán Haddock ?","Stock de coque","El cangrejo de las pinzas de oro","Tintín en el país del oro","Los cigarros del faraón","El cangrejo de las pinzas de oro",2]
[196,"Islas:","¿ Cuál es la isla más poblada ?","Taiwán","Java","La Española","Madagascar","Java",2]
[197,"Lagos del Mundo:","El Lago Assal, en Yibuti, se caracteriza por ser el lago...","más antiguos del mundo","más estrecho del mundo","más salino del mundo","más profundo del mundo","más salino del mundo",3]
[198,"¿ Cuántos sabes de la Liga Española ?:","¿ Qué jugador ha metido más goles en Primera División con el Valencia CF ?","Villa","Mundo","Waldo","Kempes","Mundo",2]
[199,"Oscar a la mejor película:","¿ Quién ganó el Oscar a la mejor película en 1938","Vive como quiera","Robin de los bosques","La ciudadela","La gran ilusión","Vive como quiera",1]
[200,"¿ Cuánto sabes de la Liga Española ?: ","El Getafe CF obtuvo su mayor goleada en la temporada 2005/2006 tras ganar 5-0. ¿ A qué equipo venció ?","RCD Español de Barcelona","Cádiz CF","Real Betis Balonpie","Málaga CF","RCD Español de Barcelona",1]
[201,"La Unión Europea","¿ En qué año entró España a formar parte de la Unión Europea ?",1995,1976,1986,1991,1986,3]
[202,"La Unión Europea","¿ Qué organismo es el encargado de regular la política económica de la Unión y establecer los tipos de interés a los que se intercambian el dinero ?","Banco Central Europeo","Comisión Europea","Tribunal de Cuentas","Banco Europeo de Inversiones","Banco Central Europeo",1]
[203,"El euro es la moneda oficial de la Unión Europea.","¿ Desde qué año podemos pagar todos los europeos con esa moneda ?",2002,1999,2005,1992,2002,1,"La Unión Europea"]
[204,"La Unión Europea tuvo su punto de partida en un tratado firmado en 1957 por sus países fundadores y cuyo nombre proviene de la ciudad donde fue acordada la unión. ","¿ Cuál ?","Tratado de Maastricht","Tratado de Roma","Tratado de Niza","Tratado de Ámsterdam","Tratado de Roma",2,"La Unión Europea"]
[205,"¿ En cuál de estos países de la Unión Europea no se puede pagar en euros, ya que este país prefiere mantener su moneda nacional ?",null,"Finladia","Reino Unido","Luxemburgo","Irlanda","Reino Unido",2,"La Unión Europea"]
[206,"La población española","¿ Cuál es la Comunidad Autónoma con menor población, cerca de 300.000 habitantes ?","La Rioja","Islas Baleares","Asturias","Navarra","La Rioja",1,"La población "]
[207,"Durante el siglo XIX, debido a la pobreza y al exceso de población, decenas de millones de europeos decidieron emigrar a otras zonas del planeta. ","¿ Cuál fue el lugar preferido para emprender una nueva vida ?","Australia y Nueva Zelanda","África mediterránea","Asia","América del Norte","América del Norte",4]
[208,"¿ Cuál de estas series nació antes",null,"Los Simpson","Farmacia de guardia","El Principe de Bel-Air",null,"Los Simpson",1]
[209,"¿ Qué es el sievert ?",null,"La medida de temperatura de los cuerpos sólidos","La medidad de intensidad del campo eléctrico","La medida de permeabilidad","La medida de la dosis de radiación absorbidad","La medida de la dosis de radiación absorbidad",4]
[210,"¿ Cuál es el río más largo de los Estados Unidos ?",null,"El Misuri","El Amazonas","El Arkansas El Misisipi","El Misisipi","El Misuri",4]
[211,"¿ En los dominios de qué Rey nunca se ponía el sol ?",null,"Carlos I de España y V de Alemania","Felipe III","Felipe II de Austria (o Habsburgo) llamado El Prudente","Carlos II","Felipe II de Austria (o Habsburgo) llamado El Prudente",3]
[212,"¿ Que posición ocupa la tierra con respecto al sol ?",null,"3º puests","1º puesto","4º puesto","5º puesto","3º puests",1]
[213,"¿ Cómo se llamaba la espada del Cid Campeador ?",null,"San Jorge","Bavieca","Excalibur","Tizona","Tizona",4]
[214,"¿ Cuál es el pico más alto de Colombia ?",null,"Alto del Buey","Piedra de Domana","Pico Cristobal Colón","Cerro de Taturcuna","Pico Cristobal Colón",3]
[215,"¿ Cuál es la montaña más alta de Europa ?",null,"El Everest","Kilimajanro","Aconcagua","Monte Elbrus","Monte Elbrus",4]
[216,"¿ Cuál es el personaje más famoso de Dallas ?",null,"J.R. Ewing","House","Grissom","Mudler","J.R. Ewing",1]
[217,"¿ Cual es la capital de la República de Iraq ?",null,"Ankara","Damaso","Bagdad","Teherán","Bagdad",3]
[218,"¿ Dónde se encontró el fósil del Darwinius masillae ?",null,"Etopia"," Siria","Alemania","Estados Unidos","Alemania",3]
[219,"Señala la obra del arquitecto Santiago Calatrava...",null,"Jardines de Can Artigas en la Pobla de Lillet","Puente de la Mujer en Buenos Aires","Casa Vicens en Barcelona","El capricho en Comillas","Puente de la Mujer en Buenos Aires",2]
[220,"¿ Quién es el bajista de The Beatles ?",null,"George Harrison","Paul McCartney","John Lennon","Ringo Starr","Paul McCartney",2]
[221,"¿ Qué grupo español se hizo famoso en los 80 por sus coreografías con abanicos ?",null,"Espontáneos","Flechazos","Loco Mía","Gabinete Caligari","Loco Mía",3]
[222,"Dónde se encuentra el Palacio de Westminter ?",null,"Belfast"," Hull","Dublin","Londres","Londres",4]
[223,"¿ Quién escribió \" La caverna \" ?",null,"Ernesto Sábato","José Luis Sampedro","Sócrates","José Saramago","José Saramago",4]
[224,"Famosa obra de Tomás Moro",null,"La Republica","Un mundo feliz","Utopía","De la Tierra a la Luna","Utopía",3]
[225,"¿ Cuál es el río más largo del mundo ?",null,"Misissippi-Missouri","Congo","Amazonas","Nilo","Amazonas",3]
[226,"Primer Presidente",null,"Juan Palacios","Juan Padrós","Manuel Ardiles","Carlos Padrós","Juan Padrós",2,"Real Madrid"]
[227,"Entrenador con más partidos con el Madrid:",null,"Beenhakker","Antic","Muñoz","Del Bosque","Muñoz",3,"Real Madrid"]
[228,"Primer jugador en marcar un gol en el nuevo estadio ( Santiago Bernabeu )",null,"Jesús Alonso","Luis Molowny","Manuel Calleja","Sabino Baringa","Sabino Baringa",4,"Real Madrid"]
[229,"Resultado del primer partido de la liga:","Real Madrid - Europa","2  2","3   1","1   4"," 5    0"," 5    0",4,"Real Madrid"]
[230,"año en el que Santiago Bernabeu llega a la presidencia del Real Madrid",null,1943,1944,1945,1942,1943,1,"Real Madrid"]
[231,"año de inauguración del Santiago Bernabeu:",null,1949,1946,1947,1948,1947,3,"Real Madrid"]
[232,"¿ Qué es un eufemismo ?",null,"Una frase hecha","Una palabra que evita decir otra desagradable","Una palabra que ha ampliado su significado con el paso del tiempo","Una palabra extranjera que no ha sufrido transformación en castellano","Una palabra que evita decir otra desagradable",2,"Lengua"]
[233,"¿ Cuándo se considera que una palabra es patrimonial ?",null,"Apenas ha sufrido cambios desde su origen latino","Pertenece a una disciplina o ciencia concreta","Ha sido incorporada al castellano sin procedencia grecolatina","Ha sufrido varios cambios desde su origen latino hasta llegar al castellano","Ha sufrido varios cambios desde su origen latino hasta llegar al castellano",4,"Lengua"]
[234,"¿ Cuándo se considera que una palabra es un cultismo ?",null,"Pertenece a una disciplina o ciencia concreta","Ha sufrido varios cambios desde su origen hasta llegar al castellano","Ha sido incoporada al castellano sin procedencia grecolatina","Apenas ha sufrido cambios desde su origen latino","Apenas ha sufrido cambios desde su origen latino",4,"Lengua"]
[235,"Indica cuál de la siguientes afirmaciones sobre las siglas y los acrónimos no es correcta",null,"Los acrónimos varían su forma en el plural","Las siglas no se acentúan ","Las siglas se escriben todas las letas en mayúsculas","Los acrónimos se escriben todas las letras en mayúsculas","Los acrónimos se escriben todas las letras en mayúsculas",4,"Lengua"]
[236,"Indica cuál de las siguientes palabras es un acrónimo",null,"CD","ONU","DVD","Láser","Láser",4,"Lengua"]
[237,"¿ Cómo se llaman las palabras que son propieas de una disciplina o de una ciencia ?",null,"Tecnicismos ","Neologismos","Locuciones","Patrimoniales","Tecnicismos ",1,"Lengua"]
[238,"Indica cuál de las siguientes oraciones hace uso de una frase hecha",null,"Es verdad como un templo","Creo que me han dado gato por liebre","El viaje salió a las mil maravillas","Haz bien y no mires a quién","Creo que me han dado gato por liebre",2,"Lengua"]
[239,"¿ Cuándo se descubre Australia y por que país ?",null,"En 1652 por Ingleses","En 1606 por Holanda","En 1579 por Portugueses","En 1723 por Españoles","En 1606 por Holanda",2,"Fechas"]
[240,"¿ Cuándo se alcanza por primera vez la cumbre del Everest",null,1946,1934,1953,1923,1953,3,"Fechas"]
[241,"¿ Cuándo hacen los hermanos Orville y Wilbur Wright volar el primer aeroplano ?",null,1910,1903,1895,1900,1903,2,"Fechas"]
[242,"¿ Qué se inventa en 1609 ?",null,"el telescopio","la máquina de escribir","la brújula","la pólvora","el telescopio",1,"Fechas"]
[243,"¿ Cuándo son expulsados definitivamente los musulmanes de la Península ?",null,"en 1523","en 1789","en 1354","en 1492","en 1492",4,"Fechas"]
[244,"¿ Qué ocurre en el año 1492",null,"Muere Enrique el Navegante","Se destruye el Imperio bizantino","Colón descubre América","Los musulmanes son expulsados de Madris","Colón descubre América",3,"Fechas"]
[245,"¿ Cuándo se inicia la supremacía inglesa en los mares ?",null,"1602 en la guerra de Trafalgar","1598 venciendo a los Holandeses sus costas","1588 destruyendo la Armada española","1505 ganando a Francia en una gran batalla naval","1588 destruyendo la Armada española",3,"Fechas"]
[246,"¿ Cuánso se pisa por primera vez la Luna ?",null,1987,1969,1964,1962,1969,2,"Fechas"]
[247,"¿ Cuándo se declara al Everest la montaña más grande del mundo ?",null,1845,1901,1856,1823,1856,3,"Fechas"]
[248,"¿ Cuál es la Comunidad Autónoma con mayor población con casi 8 millones de habitantes ?",null,"Comunidad Valenciana","Andalucia","Madrid","Cataluña","Andalucia",2]
[249,"¿ Qué mide la densidad de población de una zona o país ?",null,"Diferencia entre inmigración e emigración","El número de habitantes por kilómetro cuadrado","El número de nacimientos por cada mil habitantes","Aumento de la población en un tiempo dado","El número de habitantes por kilómetro cuadrado",2]
[250,"En los años 60 y 70 muchos españoles emigraron a otros países de Europa buscanco una vida mejor. ","¿ Cuál de los siguientes no forma parte de esos destinos preferidos ?","Alemania","Suiza","Francia","Portugal","Portugal",4]
[251,"Los análisis poblaciones suelen tener en cuenta la actividad económica desarrollada por sus habitantes.","¿ Cuál de los siguientes se engloba dentro de la denominada población activa ?","Un estudiante","Un ama de casa","Un jubilado","un desempleado","un desempleado",4]
[252,"Analizando su pirámide poblacional,","¿ hay más hombres o mujeres en Españas ?","prácticamente igual","mujeres","hombres","depende de la Comunidad Autónoma","mujeres",2]
[253,"¿ En que equipo ha estado anteriormente el actual entrenador del Barça",null,"Sólo en el Barça","Brça B y Arsenal","Ninguno","Barça B y Milan","Sólo en el Barça",1]
[254,"¿ Cuál es el equipo con más Champions League de la historia ?","hasta el 2011","Milan","Liverpol","Barça","Real Madrid","Real Madrid",4]
[255,"La mala situación económica de la España autáquica obligó a aprobar los Planes de Estabilización en 1959.","¿ Cuál fue una de las medidas tomadas para revitalizar la economía ?","Aumento del gasto público","Limitación de las inversiones extranjeras en España","Revaluación de la peseta","Liberación del comercio exterior","Liberación del comercio exterior",4,"España Epoca de Franco"]
[256,"¿ con qué dirigente latinomamericano realizóFranco un pacto en los años cuarente con el condiguió superar en parte el aislacionsmo internacional e importar cereales ?",null,"Juan Velasco Alvarado (Perú)","Miguel Alemán Valdés (México)","Juan Domingo Perón (Argentina)","Alfredo Stroessner (Paraguay)","Juan Domingo Perón (Argentina)",3,"España Epoca de Franco"]
[257,"En la década de los sesenta, cerca de un millón de españoles marcharon a Europa a trabajar, lo que supuso un descenso del paro nacional y una importante entrada de divisas gracias a las remesas de los emigrantes.","¿ Qué país fue el que más españoles acogió ?","Gran Bretaña","Suiza","Francia","Alemania","Suiza",2,"España Epoca de Franco"]
[258,"¿ Cuál fue el únco sindicato obrero permitido durante la dictadura, cuya afiliación era obligatoria, y que estaba controlado por el régimen ?",null,"Movimiento Nacional","Centro Obrera Nacional-Sindical","Organización Sindical","Acción Sindicla de Trabajadores","Organización Sindical",3,"España Epoca de Franco"]
[259,"En 1969 Franco designa como su sucesor al mando del poder en España a un miembre de la Casa de Borbón.","¿ Quién ?","Juan Carlos de Borbón y Borbón","Juan de Borbón","Alfonso Carlos de Borbón","Sisto de Borbón","Juan Carlos de Borbón y Borbón",1,"España Epoca de Franco"]
[260,"En 1953, España firma el Concordato con la Santa Sede.","¿ Cuál de las siguientes consecuencias trajo este acuerdo ?","Libertad de culto","Enseñanza obligatoria de la religión católica","Pago de impuestos por parte de la Iglesia","La designación de los obispos sería potestad del Vaticano","Enseñanza obligatoria de la religión católica",2,"España Epoca de Franco"]
[261,"El 20 de diciembre de 1973 un acontecimiento crucial incrementó la incertidumbre social y política de los últimos años del franquismo.","¿ Que sucedió ese día ?","La matanza de 5 abogados de CCOO en Atocha","El asesinato de Carrero Blanco","La ejecución del anarquista Salvador Puig Antich","La Guerra de Yom Kipur que aumentó el precio del petróleo y la crisis económica en España","El asesinato de Carrero Blanco",2,"España Epoca de Franco"]
[262,"Las bases ideologicas del franquismo permaneciron indelebles durante toda la dictadura.","Indica cuál de las siguientes no formó parte de los cimientos del régimen.","Anticomunismo","Liberalismo","Nacionalcatolicismo","Nacionalismo español","Liberalismo",2,"España Epoca de Franco"]
[263,"El anticomunismo de Franco consiguió ganarse el favor de los EE.UU., con los que firmó un acuerdo bilateral en 1953.","¿ En qué consistía el pacto ?","En el levantamiento de las sanciones económicas al regimen","En la instalación de bases militares norteamericanas en España","En la admisión de España en la ONU","En el establecimiento de un paridad entre el dólar y la peseta","En la instalación de bases militares norteamericanas en España",2,"España Epoca de Franco"]
[264,"Franco había asumido los cargos de Jefe de Estado y Presidente del Gobierno, hasta que en 1973 los separó, nombrando el primer presidente de su régimen en la figura de...",null,"Fernando de Santiago","Carlos Arias Navarro","Luis Carrero Blanco","Torcuato Fernández Miranda","Luis Carrero Blanco",3,"España Epoca de Franco"]
[265,"En 1966 aumenta la libertad de prensa por el levantamiento de la censura previa, aunque no la posterior, gracias al nuevo ministro de información y Turismo.","¿ De quién se trataba ?","Torcuato Fernández Miranda","Carlos Arias Navarro","Manuel Fraga Iribarne","Luis Carrero Blanco","Manuel Fraga Iribarne",3,"España Epoca de Franco"]
[266,"Indica cuál de las siguientes afirmaciones sobre la religión durante el franquismo","no es correcta","La Jerarquia católica ocupó puestos de poder en las Cortes","La ideología de la Iglesia católica estuvo presente en las decisiones del gobierno","Estaban prohibidas en público las manifestaciones religiosas no católicas","Existió una clara separación entre el Estado y la Iglesía","Existió una clara separación entre el Estado y la Iglesía",4,"España Epoca de Franco"]
[267,"¿ En qué año se produjo la entrada de España en las Naciones Unidas, lo que supuso el reconocimiento internacional al régimen y el fin del aislamiento desde la posguerra ?",null,1959,1955,1951,1962,1955,2,"España Epoca de Franco"]
[268,"En 1973, el obispo Moseñor Añoveros Ataún, criticó al régimen franquista y pidió un reconocimiento de la identidad cultural y lingüistíca de la región en la que ejercía.","¿ Cuál ?","Cataluña","Comunidad Valenciana","País Vasco","Galicia","País Vasco",3,"España Epoca de Franco"]
[269,"Provincia de Málaga",null,"Antequera","Aranjuez","Arévalo","Almendralejo","Antequera",1]
[270,"Provincia de Alicante",null,"El Ejido","El Escorial","Escalona","Elche","Elche",4]
[271,"Provincia de Segovia",null,"Cuéllar","Ceuta","Calatayud","Ciudad Rodrigo","Cuéllar",1]
[272,"Provincia de Navarra",null,"Estella","Éibar","Écija","Estepa","Estella",1]
[273,"Provincia de Alicante",null,"Alcoy","Almansa","Aranjuez","Avilés","Alcoy",1]
[274,"Provincia de Sevilla",null,"Escalona","Estella","Estepona","Estepa","Estepa",4]
[275,"Provincia de Burgos",null,"Bilbao","Briviesca","Badalona","Béjar","Briviesca",2]
[276,"Provincia de Albacete",null,"Algeciras","Astorga","Almansa","Almadén","Almansa",3]
[277,"Provincia de Ciudad Real",null,"Almazán","Almagro","Aranjuez","Almansa","Almagro",2]
[278,"Provincia de Vizcaya",null,"Baena","Baracaldo","Baeza","Benavente","Baracaldo",2]
[279,"Provincia de Jaén",null,"Baracaldo","Baeza","Baena","Benavente","Baeza",2]
[280,"Provincia de Córdoba",null,"Baracaldo","Baena","Benavente","Baeza","Baena",2]
[281,"¿ Cuál es el argumento de \" En busca de la felicidad \"","protagonizada por Will Smith ?","Un  grupo de astronautas cuya misión es destruir un asteroides que amenaza la Tierra","Un hombre que compite por un puesto de brocker en una empresa para sacar adelante a su hijo","El único superviviente de una pandemia que convierte a los hombres en bestias","El ejército americano luchando contra la invasión alienígena","Un hombre que compite por un puesto de brocker en una empresa para sacar adelante a su hijo",2]
[282,"¿ Quién fue Carlomagno ?",null,"Gobernador y conquistador Ateniense","El conquistador Macedonio del Imperio Persa","Un rey inglés del siglo XVI","Un rey de los Francos y Emperador del Sacro Imperio Romano","Un rey de los Francos y Emperador del Sacro Imperio Romano",4]
[283,"¿ Dónde está la Torre Bellesguard de Gaudi ?",null,"Comillas","Barcelona","León","Astorga","Barcelona",2]
[284,"¿ Dónde se encuentra la Plaza de San Marcos ?",null,"París","Moscú","Venecia","Londres","Venecia",3]
[285,"¿ De qué época es el Homo erectus ?",null,"Carbinífero","Paleoarcaico","Paleoceno","Pleistoceno","Pleistoceno",4]
[286,"¿ Qué es un liquen ?",null,"una mezcla de hongo y alga","una estrella de fósil de estrella de mar","una formación coralina","un pez","una mezcla de hongo y alga",1]
[287,"¿ Quién es el autor de la obra, La creación de Adán,","situada en la bóveda de la Capilla Sixtina ( Ciudad del Vaticano )","Velázquez","Fernando Botero","Boticelli","Miguel Ángel","Miguel Ángel",4]
[288,"Provincia de Sevilla",null,"Denia","Dos Hermanas","Daroca","Don Benito","Dos Hermanas",2]
[289,"Provincia de Málaga",null,"Chiclana","Cheste","Chinchón","Churriana","Churriana",4]
[290,"Provincia de Madrid",null,"Aguilar de Campoo","Alcalá de Henares","Alcázar de San Juan","Alba de Tormes","Alcalá de Henares",2]
[291,"Provincia de Palencia",null,"Denia","Daroca","Don Benito","Dueñas","Dueñas",4]
[292,"Provincia de Cantabria",null,"Ciudad Rodrigo","Castro Urdiales","Cangas de Nacea","Cartagena","Castro Urdiales",2]
[293,"Provincia de Salamanca",null,"Bilbao","Briviesca","Béjar","Badalona","Béjar",3]
[294,"Provincia de Jaén",null,"Baza","Bailén","Béjar","Baena","Bailén",2]
[295,"Provincia de Soria",null,"Almansa","Almaden","Almazán","Aranjuez","Almazán",3]
[296,"Provincia de Jaén",null,"Salar","Siles","Salobreña","Selva","Siles",2]
[297,"País Vasco",null,"Vitoria","San Sebastián","Bilbao","Logroño","Vitoria",1]
[298,"Navarra",null,"Logroño","Pamplona","San Sebastián","Vitoria","Pamplona",2]
[299,"Murcia",null,"Valencia","Albacete","Murcia","Cartagena","Murcia",3]
[300,"Aragón",null,"Pamplona","Calatayud","Zaragoza","Teruel","Zaragoza",3]
[301,"Andalucia",null,"Valencia","Sevilla","Cádiz","Córdoba","Sevilla",2]
[302,"Asturias",null,"Gijón","Oviedo","Santander","Cangas de Onís","Oviedo",2]
[303,"Madrid",null,"Toledo","Madrid","Guadalajara","Aranjuez","Madrid",2]
[304,"La Rioja",null,"Pamplona","Vitoria","Logroño","Soria","Logroño",3]
[305,"Castilla - La Mancha",null,"Ciudad Real","Madrid","Toledo","Albacete","Toledo",3]
[306,"Cantabria",null,"Burgos","Bilbao","Santander","Oviedo","Santander",3]
[307,"Cataluña",null,"Tarragona","Zaragoza","Gerona","Barcelona","Barcelona",4]
[308,"Castilla y León",null,"Salamanca","Valladolid","Burgos","León","Valladolid",2]
[309,"Aragón",null,"Pamplona","Calatayud","Teruel","Zaragoza","Zaragoza",4]
[310,"Baleares",null,"Castellón","Palma de Mallorca","Valencia","Barcelona","Palma de Mallorca",2]
[311,"En el sur de Asia, en las zonas con clima tropical o ecuatorial, tiene lugar un característico viento que da nombre a una estación abundantemente lluviosa.","¿ Qué nombre recibe ese viento","Alisio","Siroco","Mistral","Monzón","Monzón",4,"Geografía"]
[312,"¿ Cuál es el golfo más importante de Norteamérica que baña las costas México, Estados Unidos y Cuba ?",null,"Golfo de Florida","Golfo de Máxico","Golfo del Caribe","Golfo de Hudson","Golfo de Máxico",2,"Geografía"]
[313,"Casi la mitad del territorio africano es desierto con amplias zonas con muy poca o nula densidad de población.","¿ Cuál de los siguientes desiertos no se encuentran en este continente ?","Sahara","Líbico","Kalahari","Gobi","Gobi",4,"Geografía"]
[314,"¿ Cuál de los siguientes climas es el menos habitual en el continente africano ?",null,"Desértico","Mediterraneo","Ecuatorial","Tropical","Mediterraneo",2,"Geografía"]
[315,"¿ En qué país europeo podríamos encontrarnos si hay abundancia de bosques con hayas, robles o castaños y precipitaciones todo el año ?",null,"Italia","Noruega","Bulgaria","Turquía","España",2,"Geografía"]
[316,"¿ Dónde se encuentra la desembocadura del río Volga, el más caudalososy largo de Europa ?",null,"Atlántico","Mar Caspio","Adriatico","Mar Negro","Mar Caspio",2,"Geografía"]
[317,"El monte McKinley es el más elevado del norte de América con 6.236 metros.","¿ En qué cordillera se encuentra ?","Sierra Madre","Montañas Rocosas","De Alaska","Apalaches","De Alaska",3,"Geografía"]
[318,"¿ Cuál de los siguientes países no se encuentra en América del Norte ?",null,"Estados Unidos","Panamá","Canadá","México","Panamá",2,"Geografía"]
[319,"¿ En qué montañas nos encontramos con picos como el Montseny, el Montsant o el Turó de l'Home ?",null,"Sierra de San Just","Cordilleras Costero Catalanas","Pirineos","Sierra del Montsec","Cordilleras Costero Catalanas",2,"Geografía España"]
[320,"La Meseta Central española se divide en dos submesetas, norte y sur, que abarcan varias cuencas fluviales.","¿ Cuál de ellas se encuentra en la norteña ?","Cuenca del Guadiana","Cuenca del Duero","Cuenca del Tajo","Cuenca del Guadalquivir","Cuenca del Duero",2,"Geografía España"]
[321,"¿ Qué accidente geográfico separa los litorales mediterráneos y atlántico español ?",null,"Punta de Tarifa","Golfo de Cádiz","Estrecho de Gibraltar","Cabo Trafalgar","Estrecho de Gibraltar",3,"Geografía España"]
[322,"¿ Cuál de las siguientes ventajas sobre la globalización no responde a la realidad ?",null,"Mayor acceso a la cultura","Mejor acceso a comunicación y transporte","Mayor cooperación internacional","Distribución equitativa de la riqueza entre los distintos países","Distribución equitativa de la riqueza entre los distintos países",4]
[323,"¿ Qu´´e presidente del Gobierno Español ha nacido en Valladolid ?",null,"Adolfo Suarez","José María Aznar","José Luis Rodríguez Zapatero","Felipe González","José Luis Rodríguez Zapatero",3]
[324,"¿ Qué actor protagonizó \" Abre lo ojos \" ?",null,"Antonio Resines","Jorge Sanz","Eduardo Noriega","Santiago Segura","Eduardo Noriega",3]
[325,"¿ Qué fabrica Tiffany & Co ?",null,"Joyas","Coches de lujo","Zapatos y cinturones","Ropa","Joyas",1]
[326,"¿ De qué nacionalidad es el piloto de Fómula 1","Fernando Alonso ?","Argentina","España","Brasil","Italia","España",2]
[327,"¿ De quién es la novela ","Las Aventuras de Tom Sawyer ?","Herman Melville","Mark Twain","George Orwell","Daniel Defoe","Mark Twain",2]
[328,"¿ Quién era el Dios griego del mar ?",null,"Apolo","Dioniso","Poseidón","Zeus","Poseidón",3]
[329,"¿ En qué estadio tuvo lugar la \" Tragedia de Valley Parade \"","en la que murieron 56 personas por el incendio de las tribunas en un partido de la Third División Inglesa ?","Cambridge","Londrés","Bradford","Oxford","Bradford",3]
[330,"Autor de \" Ultimas tardes con Teresa \" ?",null,"Camilo José Cela","Antonio Muñoz Molina","Juan Marsé","José Espronceda","Juan Marsé",3]
[331,"¿ Qué pintor colaboró con Luis Buñuel en el guión del cortometraje","\" Un perro andaluz \" ?","Vicent Van Gogh","Diego Velázquez","Pablo Picasso","Salvador Dalí","Salvador Dalí",4]
[332,"¿ Quién escribió La casa de los espíritus ?",null,"Angeles Mastretta","Josefina Ludmer","Elsa Serrano","Isabel Allende","Isabel Allende",4]
[333,"¿ En qué posición juega el futbolista inglés ","David Beckham ?","Delantero","Mediocampista","Defensa","Guardameta","Mediocampista",2]
[334,"¿ Qué se celebra el 28 de Diciembre ?","España","El Corpus Christi","El Día de los Santos Inocentes","La Navidad","El Día de Todos los Santos","El Día de los Santos Inocentes",2]
[335,"¿ Cuál es la forma de  gobierno de la India ?",null,"Dictadura militar","Monarquía contitucional","Monarquía parlamentaria","República parlamentaria","República parlamentaria",4]
[336,"¿ De quién es la canción ","\" Blue suedes shoes \"","Chuck Berry","Elvis Presley","Little Richard","Carl Perkins","Carl Perkins",4]
[337,"El retablo de las maravillas","es un entremes escrito por...","Baltasar Gracián","Miguel de Cervantes y Saavedra","Calderón de la Barca","Quevedo","Miguel de Cervantes y Saavedra",2]
[338,"¿ Quién es Saladino ?",null,"Un emperador Persa y conquistador de Grecia","El constructor de los Jardines Colgantes de Babilonia","Rey de Macedonia y descubridor del nacimiento del Rio Nilo","Uno de los grandes gobernantes del mundo Islámico, Sultán de Egipto y Siria","Uno de los grandes gobernantes del mundo Islámico, Sultán de Egipto y Siria",4]
[339,"¿ Cómo perdió Miguel de Cervantes el movimiento de la mano izquierda ?",null,"En una reyerta callejera","En una apuesta","Como guarda real de Felipe V","En la Batalla de Lepanto","En la Batalla de Lepanto",4]
[340,"¿ Qué película de Pedro Almodóvar ganó en el año 1999 el Oscar a la mejor película de habla no inglesa ?",null,"Todo sobre mi madre","Carne trémula","Kika","Tacones lejamos","Todo sobre mi madre",1]
[341,"¿ Qué monumento está en la plaza Charles de Gaulle de París ?","Torre Eiffel","La catedral de Notre Dame","Museo de Orsay","Torre Eiffel","Arco de Triunfo","Arco de Triunfo",4]
[342,"¿ Qué canción cantó Julio Iglesias en el Festival de Eurovisión celebrado en Ámsterdam en 1970 ?","quedando en 4º lugar","De niña a mujer","Tango","A mis 33 años","Gwendolyne","Gwendolyne",4]
[343,"¿ Cuál de las 7 maravillas del mundo es obra de Cares de Lindos ?","Isla de Rodas ( Grecia )","La Gran Pirámide de Giza","Los Jardines Colgantes de Babilonia","El Coloso de Rodas","El Templo de Artemisa","El Coloso de Rodas",3]
[344,"¿ Quién inventó el GPS ?",null,"El Servicio de Astronomía de Rusia","El Departamento de Defensa de EE.UU.","El Departamento de Defensa Chino","El Servicio de Astronomía de EE.UU.","El Departamento de Defensa de EE.UU.",2]
[345,"¿ Qué país europeo colonizó Etiopía ?",null,"Ninguno","Francia","Inglaterra","Italia","Ninguno",1,null,"único entre los países africanos, Etiopía nunca ha sido colonizada, manteniendo su independenicia durante toda la Repartición de África, excepto por un período de cinco años 1936-1941, cuando estuvo bajo la ocupación italiana"]
[346,"¿ Quién fue el ganador en el Festival de la Canción de Eurovisión en el 2009 ?",null,"Francia, representante Patricia Kaas","Noruega, representante Alexander Rybak","España, representante Soraya","Reino Unido, representante Jade Ewen","Noruega, representante Alexander Rybak",2]
[347,"¿ Dónde habitaron los etruscos ?",null,"En Mesopotamia. actual Irak","En la Toscana, Italia","En Cartagena, Túnez","En Tebas, Egipto","En la Toscana, Italia",2]
[348,"¿ Con qué sobrenombre fue conocido el Rey de España Carlos II de Austria ?",null,"El rey planeta","El hechizado","El grande","El piadoso","El hechizado",2]
[349,"¿ Dónde desemboca el río Niger ?",null,"En el oceano Pacífico","En el mar Rojo","En el Mar Mediterráneo","Golfo de Guinea","Golfo de Guinea",4]
[350,"¿ Cómo se llama el mono que acompaña a Marco en su Viaje a Argentina ?",null,"Renata","Rocchi","Amedio","Folgore","Amedio",3]
[351,"¿ Qué tipo de coches fabrica la marca Hummer ?",null,"todoterrenos","furgonetas","deportivos de lujo","motocicletas","todoterrenos",1]
[352,"¿ Dónde nació Mahatma Gandhi ?",null,"Pakistán","India","Sudáfrica","Israel","India",2]
[353,"¿ Dónde nació Bruce Springsteen ?"," ","Londrés","Moscú","Nueva Jersey","Estocolmo","Nueva Jersey",3]
[354,"¿ Cuál es la moneda oficial de la República Argentina ?",null,"Real","Guarani","Nuevo sol","Peso","Peso",4]
[355,"¿ Qué obra de Rafael Alberti expresa sus impresiones sobre los pueblos de ","Castilla","Sobre los ángeles","Marinero en tierra","Platero y yo","La amante","Marinero en tierra",2]
[356,"¿ Quién fue Gloria Fuentes ?",null,"Escritora de ciencia ficción","Autora de \" El maestro de esgrima\"","Novelista del Siglo de Oro español","La poetisa de los niños","La poetisa de los niños",4]
[357,"¿ Quién escribió  ( Paula ) ",1994,"Federico García Lorca","Isabel Allende","Graham Greene","Patrick Suskind","Isabel Allende",2]
[358,"¿ De qué género es \" La Comunidad \" del director","Álex de la Iglesia","Terror","Comedia romántica","Comedia de humor negro","Ciencia ficción","Comedia de humor negro",3]
[359,"¿ De dónde es el Ron Barceló ?",null,"Cuba","República Dominicana","México","Venezuela","República Dominicana",2]
[360,"¿ Qué es ","Arte Povera ?","Expresión artística que implica la participación del público","Arte en vivo","Arte pobre","Bioarte","Arte pobre",3]
[361,"¿ Qué prueba ganó","Abebe Bikila en 1960","El salto de longitud en el campeonato mundial de atletismo","Los 200 metros vallas en el campeonato mundial de atletismo","La maratón olímpica","Los 100 metros lisos en las olimpiadas","La maratón olímpica",3]
[362,"Un \"Alfarero\" es un individuo que se dedica a la fabricación de",null,"cestas de alfalfa","vasijas de barro","camisetas de lana","zapatos de cuero","vasijas de barro",2]
[363,"Cual de estos colores puede ser mezclado con azul ","para bacer morado","verde","rojo","naranja","amarillo","rojo",2]
[364,"cual es el único animal domesticado que no se menciona en la biblia",null,"perro","caballo","gato","cerdo","gato",3]
[365,"El que ayuda al sacerdote es un...",null,"acólitico","ateo","hereje","alcohólico","acólitico",1]
[366,"Sobre el océano Atlántico hay un famoso y misterioso triángulo ","llamado...","Isóceles","de la Bermudas","de Amor","de Pitágoras","de la Bermudas",2]
[367,"Como se llaman los vehículos en que se transportan los Picapiedra",null,"piedrautos","mamuts","rocamovil","troncomóviles","troncomóviles",4]
[368,"El estilo artístico de Degas, Monet y Renoir se consideraba...",null,"impresionista","pop-art","esnob","chic","impresionista",1]
[369,"Conocida planta cuyo bulbo se usa como condimento...",null,"manzanilla","limonaria","ajo","canela","ajo",3]
[370,"La copa Davis es un prestigiosos evento de...",null,"fútbol","tejo","tenis","billar","tenis",3]
[371,"Como se denominan los triángulos que poseen"," los tres lados iguales ?","isóceles","equiláteros","obtusos","escalenos","equiláteros",2]
[372,"El orden de los factores no altera el...",null,"resultado","cociente","producto","divisor","producto",3]
[373,"Cuántos lados tiene un pentágono ?",null,"9 lados","7 lados","5 lados","11 lados","5 lados",3]
[374,"Cuál de los siguientes planetas está más alejado del Sol ?",null,"Mercurio","Júpiter","Plutón","Venus","Plutón",3]
[375,"Cómo se llama el mejor amigo de ","Bart Simpson ?","Milhouse","Nelson","Martin","Skinner","Milhouse",1]
[376,"El Teide, con 3.718 metros de altura, es el pico más alto de España.","¿ En cuál de las Islas Canarias se encuentra este  volcán ?","Lanzarote","La Palma","Tenerife","Gran Canaria","Tenerife",3]
[377,"¿ Cuál es el pico más alto de la España peninsular ?",null,"Aneto","Teide","Mulhacen","Veleta","Mulhacen",3]
[378,"¿ En qué cordillera asiática podemos encontrarnos con el monte Everest que, ","con sus 8.848 metro, es el mayor pico del mundo ?","Deccán","Pamir","Himalaya","Cherski","Himalaya",3]
[379,"a grandes males,","grandes...","arreglos","daños","alivios","remedios","remedios",4]
[380,"cada loco","con su...","gorro","cuerda","soga","tema","tema",4]
[381,"poner el grito ","en el...","fuego","techo","pueblo","cielo","cielo",4]
[382,"prometer el oro ","y el...","moro","coro","toro","loro","moro",1]
[383]
[384]
[385]
[386]
[387]
[388]
[389]
[390]
[391]
[392]
[393]
[394]
[395]
[396]
[397]
[398]
[399]
[400]
[401]
[402]
[403]
[404]
[405]
[406]
[407]
[408]
[409]
[410]
[411]
[412]
[413]
[414]
[415]
[416]
[417]
[418]
[419]
[420]
[421]
[422]
[423]
[424]
[425]
[426]
[427]
[428]
[429]
[430]
[431]
[432]
[433]
[434]
[435]
[436]
[437]
[438]
[439]
[440]
[441]
[442]
[443]
[444]
[445]
[446]
[447]
[448]
[449]
[450]
[451]
[452]
[453]
[454]
[455]
[456]
[457]
[458]
[459]
[460]
[461]
[462]
[463]
[464]
[465]
[466]
[467]
[468]
[469]
[470]
[471]
[472]
[473]
[474]
[475]
[476]
[477]
[478]
[479]
[480]
[481]
[482]
[483]
[484]
[485]
[486]
[487]
[488]
[489]
[490]
[491]
[492]
[493]
[494]
[495]
[496]
[497]
[498]
[499]
[500]
[501]
[502]
[503]
[504]
[505]
[506]
[507]
[508]
[509]
[510]
[511]
[512]
[513]
[514]
[515]
[516]
[517]
[518]
[519]
[520]
[521]
[522]
[523]
[524]
[525]
[526]
[527]
[528]
[529]
[530]
[531]
[532]
[533]
[534]
[535]
[536]
[537]
[538]
[539]
[540]
[541]
[542]
[543]
[544]
[545]
[546]
[547]
[548]
[549]
[550]
[551]
[552]
[553]
[554]
[555]
[556]
[557]
[558]
[559]
[560]
[561]
[562]
[563]
[564]
[565]
[566]
[567]
[568]
[569]
[570]
[571]
[572]
[573]
[574]
[575]
[576]
[577]
[578]
[579]
[580]
[581]
[582]
[583]
[584]
[585]
[586]
[587]
[588]
[589]
[590]
[591]
[592]
[593]
[594]
[595]
[596]
[597]
[598]
[599]
[600]
[601]
[602]
[603]
[604]
[605]
[606]
[607]
[608]
[609]
[610]
[611]
[612]
[613]
[614]
[615]
[616]
[617]
[618]
[619]
[620]
[621]
[622]
[623]
[624]
[625]
[626]
[627]
[628]
[629]
[630]
[631]
[632]
[633]
[634]
[635]
[636]
[637]
[638]
[639]
[640]
[641]
[642]
[643]
[644]
[645]
[646]
[647]
[648]
[649]
[650]
[651]
[652]
[653]
[654]
[655]
[656]
[657]
[658]
[659]
[660]
[661]
[662]
[663]
[664]
[665]
[666]
[667]
[668]
[669]
[670]
[671]
[672]
[673]
[674]
[675]
[676]
[677]
[678]
[679]
[680]
[681]
[682]
[683]
[684]
[685]
[686]
[687]
[688]
[689]
[690]
[691]
[692]
[693]
[694]
[695]
[696]
[697]
[698]
[699]
[700]
[701]
[702]
[703]
[704]
[705]
[706]
[707]
[708]
[709]
[710]
[711]
[712]
[713]
[714]
[715]
[716]
[717]
[718]
[719]
[720]
[721]
[722]
[723]
[724]
[725]
[726]
[727]
[728]
[729]
[730]
[731]
[732]
[733]
[734]
[735]
[736]
[737]
[738]
[739]
[740]
[741]
[742]
[743]
[744]
[745]
[746]
[747]
[748]
[749]
[750]
[751]
[752]
[753]
[754]
[755]
[756]
[757]
[758]
[759]
[760]
[761]
[762]
[763]
[764]
[765]
[766]
[767]
[768]
[769]
[770]
[771]
[772]
[773]
[774]
[775]
[776]
[777]
[778]
[779]
[780]
[781]
[782]
[783]
[784]
[785]
[786]
[787]
[788]
[789]
[790]
[791]
[792]
[793]
[794]
[795]
[796]
[797]
[798]
[799]
[800]
[801]
[802]
[803]
[804]
[805]
[806]
[807]
[808]
[809]
[810]
[811]
[812]
[813]
[814]
[815]
[816]
[817]
[818]
[819]
[820]
[821]
[822]
[823]
[824]
[825]
[826]
[827]
[828]
[829]
[830]
[831]
[832]
[833]
[834]
[835]
[836]
[837]
[838]
[839]
[840]
[841]
[842]
[843]
[844]
[845]
[846]
[847]
[848]
[849]
[850]
[851]
[852]
[853]
[854]
[855]
[856]
[857]
[858]
[859]
[860]
[861]
[862]
[863]
[864]
[865]
[866]
[867]
[868]
[869]
[870]
[871]
[872]
[873]
[874]
[875]
[876]
[877]
[878]
[879]
[880]
[881]
[882]
[883]
[884]
[885]
[886]
[887]
[888]
[889]
[890]
[891]
[892]
[893]
[894]
[895]
[896]
[897]
[898]
[899]
[900]
[901]
[902]
[903]
[904]
[905]
[906]
[907]
[908]
[909]
[910]
[911]
[912]
[913]
[914]
[915]
[916]
[917]
[918]
[919]
[920]
[921]
[922]
[923]
[924]
[925]
[926]
[927]
[928]
[929]
[930]
[931]
[932]
[933]
[934]
[935]
[936]
[937]
[938]
[939]
[940]
[941]
[942]
[943]
[944]
[945]
[946]
[947]
[948]
[949]
[950]
[951]
[952]
[953]
[954]
[955]
[956]
[957]
[958]
[959]
[960]
[961]
[962]
[963]
[964]
[965]
[966]
[967]
[968]
[969]
[970]
[971]
[972]
[973]
[974]
[975]
[976]
[977]
[978]
[979]
[980]
[981]

{"sheet":"Hoja2","index":1,"n_rows":19,"n_cols":9,"rows_kept":19,"cut":false,"hidden":false,"merged":[[3,5,3,6],[4,5,4,6],[5,5,5,6],[6,5,6,6],[2,5,2,6]]}
[null,null,null,null,{"$f":"E13","v":0},null,null,{"$f":"VLOOKUP(I2,Hoja1!A1:J400,9,FALSE)","v":1},100]
[null,null,null,null,"¿ Cómo perdió Miguel de Cervantes el movimiento de la mano izquierda ?",null,null,null,100]
["jugadores",null,null,null,0]
["nombre ?",null,1,{"$f":"IF(C4=$H$1,\"si\",\"no\")","v":"si"},"En una reyerta callejera",1]
["?",null,null,{"$f":"IF(C5=$H$1,\"si\",\"no\")","v":"no"},"En una apuesta"]
["?",null,null,{"$f":"IF(C6=$H$1,\"si\",\"no\")","v":"no"},"Como guarda real de Felipe V",3]
["?",null,null,{"$f":"IF(C7=$H$1,\"si\",\"no\")","v":"no"},"En la Batalla de Lepanto",4]
[]
[]
[]
[]
[]
[null,null,null,null,{"$f":"VLOOKUP(Hoja4!CF9,Hoja1!A1:J383,10,FALSE)","v":0}]
[null,null,null,null,{"$f":"VLOOKUP(Hoja4!CF9,Hoja1!A1:H997,2,FALSE)","v":"¿ Cómo perdió Miguel de Cervantes el movimiento de la mano izquierda ?"}]
[null,null,null,null,{"$f":"VLOOKUP(Hoja4!CF9,Hoja1!A1:J997,3,FALSE)","v":0}]
[null,null,null,null,{"$f":"VLOOKUP(Hoja4!CF9,Hoja1!A1:H997,4,FALSE)","v":"En una reyerta callejera"}]
[null,null,null,null,{"$f":"VLOOKUP(Hoja4!CF9,Hoja1!A1:H997,5,FALSE)","v":"En una apuesta"}]
[null,null,null,null,{"$f":"VLOOKUP(Hoja4!CF9,Hoja1!A1:H997,6,FALSE)","v":"Como guarda real de Felipe V"}]
[null,null,null,null,{"$f":"VLOOKUP(Hoja4!CF9,Hoja1!A1:H997,7,FALSE)","v":"En la Batalla de Lepanto"}]

{"sheet":"Hoja3","index":2,"n_rows":1,"n_cols":4,"rows_kept":1,"cut":false,"hidden":true,"merged":[]}
[{"$f":"Hoja2!A4","v":"nombre ?"},{"$f":"Hoja2!A5","v":"?"},{"$f":"Hoja2!A6","v":"?"},{"$f":"Hoja2!A7","v":"?"}]

{"sheet":"Hoja4","index":3,"n_rows":88,"n_cols":84,"rows_kept":88,"cut":false,"hidden":false,"merged":[[39,2,45,79],[21,83,23,85],[24,83,24,85],[8,83,10,85],[13,83,17,85],[24,2,28,79],[92,0,92,81],[61,39,69,43],[61,44,70,74],[47,2,57,7],[52,81,57,82],[64,81,69,82],[82,34,91,41],[81,16,91,22],[47,8,58,37],[47,46,58,74],[62,8,70,37],[47,39,57,45],[0,80,90,80],[62,2,69,7],[0,0,91,1],[29,2,38,79]]}
[]
[]
[]
[]
[]
[]
[]
[]
[null,null,null,null,null,null,null,null,null,null,null,null,null,null,null,null,null,null,null,null,null,null,null,null,null,null,null,null,null,null,null,null,null,null,null,null,null,null,null,null,null,null,null,null,null,null,null,null,null,null,null,null,null,null,null,null,null,null,null,null,null,null,null,null,null,null,null,null,null,null,null,null,null,null,null,null,null,null,null,null,null,null,null,339]
[]
[]
[]
[]
[null,null,null,null,null,null,null,null,null,null,null,null,null,null,null,null,null,null,null,null,null,null,null,null,null,null,null,null,null,null,null,null,null,null,null,null,null,null,null,null,null,null,null,null,null,null,null,null,null,null,null,null,null,null,null,null,null,null,null,null,null,null,null,null,null,null,null,null,null,null,null,null,null,null,null,null,null,null,null,null,null,null,null,{"$f":"VLOOKUP(CF9,Hoja1!A1:J382,9)","v":4}]
[]
[]
[]
[]
[]
[]
[]
[null,null,null,null,null,null,null,null,null,null,null,null,null,null,null,null,null,null,null,null,null,null,null,null,null,null,null,null,null,null,null,null,null,null,null,null,null,null,null,null,null,null,null,null,null,null,null,null,null,null,null,null,null,null,null,null,null,null,null,null,null,null,null,null,null,null,null,null,null,null,null,null,null,null,null,null,null,null,null,null,null,null,null,{"$f":"RANDBETWEEN(1,382)","v":170}]
[]
[]
[null,null,{"$f":"Hoja2!E13","v":0}]
[]
[]
[]
[]
[null,null,{"$f":"Hoja2!E14","v":"¿ Cómo perdió Miguel de Cervantes el movimiento de la mano izquierda ?"}]
[]
[]
[]
[]
[]
[]
[]
[]
[]
[null,null,{"$f":"Hoja2!E15","v":0}]
[]
[]
[]
[]
[]
[]
[]
[null,null,1,null,null,null,null,null,{"$f":"Hoja2!E16","v":"En una reyerta callejera"},null,null,null,null,null,null,null,null,null,null,null,null,null,null,null,null,null,null,null,null,null,null,null,null,null,null,null,null,null,null,2,null,null,null,null,null,null,{"$f":"Hoja2!E17","v":"En una apuesta"}]
[]
[]
[]
[]
[]
[]
[]
[]
[]
[]
[]
[]
[]
[null,null,null,null,null,null,null,null,null,null,null,null,null,null,null,null,null,null,null,null,null,null,null,null,null,null,null,null,null,null,null,null,null,null,null,null,null,null,null,4,null,null,null,null,{"$f":"Hoja2!E19","v":"En la Batalla de Lepanto"}]
[null,null,3,null,null,null,null,null,{"$f":"Hoja2!E18","v":"Como guarda real de Felipe V"}]
[]
[]
[]
[]
[]
[]
[]
[]
[]
[]
[]
[]
[]
[]
[]
[]
[]
[]
[]
[]
[]
[]
[]
[]
[null,null,null,null,null,null,null,null,null,null,null,null,null,null,null,null,null,null,null,null,null,null,null,null,3]